Workbook

Sheet EingabeMaske
D1: EFH-Rechner, Version 1 - 2023 | M1: =D1 -> EFH-Rechner, Version 1 - 2023
A4: Vergleichswertberechnung für Einfamilienwohnhäuser mittels Vergleichswertfaktoren des Landesgrundstücksmarktberichtes 2021
A5: gem. § 182 Abs.2 BewG i. V. m. § 183 BewG. | C5: Carport
A7: Bitte Hinweise in den Kommentarfeldern in Spalte "E" beachten. | J7: keine Angabe
A8: Eingabefelder blau | B8: Berechnungsfelder rot
A10: Angaben zum Wertermittlungsobjekt | J10: Angaben zum Richtwertobjekt
A12: Adresse und Ort: | B12: Musterstraße 13, 00000 Musterstadt
A13: Gemeinde / Gemarkung / Landkreis bzw. Stadt: | B13: / / | J13: Gemeinde / Gemarkung / Landkreis bzw. Stadt: | K13: =B13 -> / / | M13: Bobenheim-Roxheim - Roxheim
H14: 1960-01-01 | J14: Marktsegment | M14: =ROUND(VLOOKUP(EingabeMaske!B13,'Vergleichsfaktoren 2021 (2)'!A8:I3023,6,FALSE),0) -> 0
J15: Stichtag: | M15: 2020-01-01
A16: Wertermittlungsstichtag (WST): | D16: 2020-01-01 | H16: =IF(D16>TODAY(),"plausibel ?",IF(D16<H14,"plausibel ?"," ")) ->  | I16: =(YEAR(D16)+1) -> 2021 | J16: Index nach Marktsegment 01.01.2020 (2010 = 100): | M16: =IF(YEAR(D16)=2022,'Vergleichsdaten 2022'!J297,IF(YEAR(D16)>=2023,'Vergleichsdaten 2023'!J185,'Vergleichsdaten 2021'!J171)) -> 0
A17: Index nach Marktsegment (2010 = 100) | C17: =IF(D16>TODAY(),"Datum liegt in der Zukunft","") ->  | D17: =IF(YEAR(D16)=2022,'Vergleichsdaten 2022'!I297,IF(YEAR(D16)>=2023,'Vergleichsdaten 2023'!I185,'Vergleichsdaten 2021'!I171)) -> 0 | J17: Vergleichsfaktor (Haustyp freistehend) | M17: =ROUND(VLOOKUP(EingabeMaske!B13,'Vergleichsfaktoren 2021 (2)'!A8:I3023,8,FALSE),0) -> 0
A18: Haustyp | D18: freistehend | J18: =IF('Vergleichsdaten 2022'!J37=1,"Vergleichsfaktor ("&M17&" €/m² x 1,00)", "Vergeichsfaktor (Haustyp "&D18 &") [("&M17&" €/m² x "&'Vergleichsdaten 2022'!J37&") x "&'Vergleichsdaten 2022'!I38&" / "&'Vergleichsdaten 2022'!B12& "]") -> Vergleichsfaktor (0 €/m² x 1,00) | M18: =M17*'Vergleichsdaten 2022'!J37*'Vergleichsdaten 2022'!I38/'Vergleichsdaten 2022'!B12 -> 
A19: gesamte Grundstücksgröße (gGG): | D19: 500 | H19: =IF(D19<0.0000001,"plausibel ?",IF(D19>3000,"plausibel ?"," ")) ->  | J19: Grundstücksgröße (GG): | M19: ='Vergleichsdaten 2022'!B11 -> 500
A20: Fall 3: Eine Aufteilung in selbstständig verwertbare und baulich nutzbare Teilflächen ist nicht möglich. Die mittlere Tiefe des Grundstücks liegt unter 40 m. Eintrag auf 0 setzen. | D20: 0 | H20: =LOOKUP(EingabeMaske!A20,Bewertungsgrundstück,'Werte 2'!N2:N4) ->  | J20: bebaute Grundstücksteilfläche bei möglicher separater Verwertbarkeit | M20: keine Angabe
A21: Gebäudestandardstufe (GST): gemäß Erklärung, hilfsweise Schätzung | B21: siehe Berechnungshilfe Blatt "GebStandard" | D21: =GebStandard!I25 -> 3 | J21: Gebäudestandardstufe (GST): | M21: ='Vergleichsdaten 2022'!B6 -> 3
A22: Wohnfläche (WF): | D22: 145 | J22: Wohnfläche (WF): | M22: ='Vergleichsdaten 2022'!B3 -> 145
A23: Baujahr (BJ): | D23: 2005 | F23: =IF(D23>=1960,"",IF((D23<1960)*(RND!F35<>"ja"),"Das tatsächliche Baujahr liegt vor 1960. Dies erfordert eine Prüfung, ob durch Modernisierungsmaßnahmen der letzten 10 Jahre das Baujahr fiktiv mindestens auf das Jahr 1960 verjüngt wird (siehe Tabelle RND).",IF((D23<1960)*(RND!F35="ja"),IF(RND!F34<1960,"Das fiktive Baujahr liegt unter 1960. Das Objekt ist im Sachwertverfahren zu bewerten!","")))) ->  | J23: Baujahr (BJ): | M23: =J7 -> keine Angabe
A24: Gesamtnutzungsdauer (GND): | D24: =ROUND(5*D21+55,0) -> 70 | J24: Gesamtnutzungsdauer (GND): | M24: ='Vergleichsdaten 2022'!B7 -> 70
A25: Restnutzungsdauer (RND): | D25: =ROUND(IF((RND!F35="nein")*(D24-(YEAR(D16)-D23)>= D24*30%),D24-(YEAR(D16)-D23),IF((RND!F35="ja")*(RND!F32>=D24*30%),RND!F32,D24*30%)),0) -> 55 | H25: =IF(OR(D25<=15,D25=D24),"plausibel ?"," ") ->  | J25: Restnutzungsdauer (RND): | M25: ='Vergleichsdaten 2022'!B8 -> 55
A26: Bodenrichtwert (BRW) 01.01.2020 gemäß Liegenschaftskarte/Geodatenserver RP (Auf ältere Stichtage erfolgt programmgesteuert eine Umrechnung mittels eines Indexes.) | D26: 300 | H26: =IF(D26<5,"plausibel ?",IF(D26>1000,"plausibel ?"," ")) ->  | J26: Bodenrichtwert (BRW), maßgeblich ist der BRW zum 01.01.2020 gemäß Liegenschaftskarte/Geodatenserver RP | M26: ='Berechnung und Ergebnis'!F31 -> 0
A27: falls im Bodenrichtwert enthalten: Angabe der Grundstücksgröße des Bodenrichtwerts | D27: 500 | J27: =IF('Vergleichsdaten 2022'!J37=1,"Sachwertfaktor","Sachwertfaktor (Sachwertfaktor bei Haustyp freistehend = "&'Vergleichsdaten 2022'!B12&")") -> Sachwertfaktor | M27: ='Vergleichsdaten 2022'!I38 -> 
A28: Außen- und Nebenanlagen (Zeitwert): mindestens Erschließung | D28: =ROUND('Berechnung und Ergebnis'!F92*'Berechnung und Ergebnis'!F99/'Berechnung und Ergebnis'!F100*EingabeMaske!D22*4%,-2) ->  | H28: =IF(D28<0,"plausibel ?",IF(D28>100000,"plausibel ?"," ")) ->  | J28: Außen- und Nebenanlagen (Zeitwert): | M28: 0
A29: Nebengebäude | C29: Sonstiges (freie Eingabe) | D29: 0 | J29: Nebengebäude | M29: 0
A31: Umrechnungskoeffizient aufgrund der Berücksichtigung von Einliegerwohnungen | J31: Umrechnungskoeffizient aufgrund der Berücksichtigung von Einliegerwohnungen
A32: FELW: | D32: 1 | J32: FELW: | M32: 1
A36: Quelle: Oberer Gutachterausschuss für Grundstückswerte Rheinland-Pfalz gem. Landesgrundstückmarkbericht 2021 | I36: =A36 -> Quelle: Oberer Gutachterausschuss für Grundstückswerte Rheinland-Pfalz gem. Landesgrundstückmarkbericht 2021

Sheet Berechnung und Ergebnis
F1: =EingabeMaske!D1 -> EFH-Rechner, Version 1 - 2023
A3: Vergleichswertberechnung für Ein-/Zweifamilienwohnhäuser mittels Vergleichswertfaktoren des Landesgrundstücksmarktberichtes 2021
A4: gem. § 182 Abs.2 BewG i. V. m. § 183 BewG.
A6: Bezeichnung des Wertermittlungsobjekts der Bewertung nach § 183 BewG | B6: =EingabeMaske!B12 -> Musterstraße 13, 00000 Musterstadt
A8: Angaben zum Wertermittlungsobjekt (WO)
A10: Wertermittlungsstichtag (WST): | D10: =EingabeMaske!H16 ->  | F10: =EingabeMaske!D16 -> 2020-01-01
A11: gesamte Grundstücksgröße (gGG): | D11: =EingabeMaske!H19 ->  | F11: =ROUND(EingabeMaske!D19,0) -> 500
A12: bei Aufteilung des Grundstücks in Bewertungsteilflächen: Grundstücksteilfläche (überbaute Fläche zzgl. Umgriffsfläche): | F12: =LOOKUP(EingabeMaske!A20,Bewertungsgrundstück,'Werte 2'!C2:C4) -> 0
A13: Gebäudestandardstufe (GST): | B13: (gemäß Erklärung, hilfsweise Schätzung) | F13: =ROUND(EingabeMaske!D21,2) -> 3
A14: Wohnfläche (WF): | F14: =ROUND(EingabeMaske!D22,0) -> 145
A15: Baujahr (BJ): | F15: =EingabeMaske!D23 -> 2005
A16: Gesamtnutzungsdauer (GND): | B16: (austattungsbezogene GND gemäß der Sachwertrichtlinie) | F16: =ROUND(EingabeMaske!D24,0) -> 70
A17: Restnutzungsdauer (RND): | B17: =IF(F17>ROUND(0.3*F16,0),"","(in Anlehnung an § 185 Abs. 3 BewG: mind. 30% der GND)") ->  | F17: =ROUND(EingabeMaske!D25,0) -> 55
A18: Bodenrichtwert (BRW) 01.01.2020: | B18: (auf abweichende Stichtage erfolgt programmgesteuert eine Umrechnung mittels Indizes) | F18: =ROUND(EingabeMaske!D26,0) -> 300
A19: Grundstücksgröße des Bodenrichtwerts: | F19: =ROUND(EingabeMaske!D27,0) -> 500
A20: Außen und Nebenanlagen (Zeitwert): | B20: (mind. Erschließung; pauschal werden 4% des Gebäudewerts angesetzt) | F20: =EingabeMaske!D28 -> 
A21: Nebengebäude: | F21: =EingabeMaske!D29 -> 0
A22: Bodenwertanteil (BWA) je m² Wohnfläche: | B22: ="[ "&ROUND(IF(F12>0,F12,F11),2)&" m² x "&F18&" €/m² (ohne Größenanpassung) / "&F14&" m² ]" -> [ 500 m² x 300 €/m² (ohne Größenanpassung) / 145 m² ] | F22: =ROUND(IF(F12>0,F18*F12/F14,F18*F11/F14),2) -> 1034.48
A24: Angaben zum Richtwertgrundstück (RWG)
A26: Grundstücksgröße (GG): | F26: =EingabeMaske!M19 -> 500
A27: Gebäudestandardstufe (GST): | F27: =EingabeMaske!M21 -> 3
A28: Wohnfläche (WF): | F28: =EingabeMaske!M22 -> 145
A29: Gesamtnutzungsdauer (GND): | F29: =EingabeMaske!M24 -> 70
A30: Restnutzungsdauer (RND): | F30: =EingabeMaske!M25 -> 55
A31: Bodenwertniveau (BWN): | F31: =ROUND(VLOOKUP(EingabeMaske!B13,'Vergleichsfaktoren 2021 (2)'!A8:I3023,7,FALSE),2) -> 0
A32: Vergleichsfaktor [Richtwert (RW)]: (je m² Wohnfläche) | B32: =IF('Vergleichsdaten 2022'!J37=1,"", "[("&EingabeMaske!M17&" €/m² x "&'Vergleichsdaten 2022'!J37&") x "&'Vergleichsdaten 2022'!I38&" / "&'Vergleichsdaten 2022'!B12&"]") ->  | F32: =EingabeMaske!M18 -> 
A33: Sachwertfaktor des Richtwertgrundstücks: | B33: =IF('Vergleichsdaten 2022'!J37=1,"","(Sachwertfaktor bei Haustyp freistehend = "&'Vergleichsdaten 2022'!B12&" )") ->  | F33: ='Vergleichsdaten 2022'!I38 -> 
A35: Bodenwertanteil (BWA): (je m² Wohnfläche) | F35: =ROUND(F31*'Vergleichsdaten 2022'!B11/'Vergleichsdaten 2022'!B3,2) -> 0
A37: Die vorliegenden Vergleichsfaktoren wurden vom oberen Gutachterausschuss für jede Gemarkung abgeleitet und beziehen sich auf die Merkmale für ein sog. Richtwertgrundstück. Um die Vergleichsfaktoren (im Weiteren als Richtwert bezeichnet) an das konkrete Wertermittlungsobjekt anzupassen, werden die seitens des OGA empfohlenen Anpassungsfaktoren und Umrechnungskoeffizienten zur Schätzung der Zu- und Abschläge angewandt. Diese wurden zum Teil vom OGA selbst abgeleitet bzw. der einschlägigen Literatur entnommen und entsprechend dem Bewertungsgesetz seitens des Landesamt für Steuern angepasst.
A38: Berechnung des Vergleichswertes
A39: 1. Berücksichtigung des Bodenwertanteils des Wertermittlungsobjekts (RW1)
A40: Bodenwertanteil des Wertermittlungsobjekts pro m² Wf
A41: Bodenwert pro m² | F41: =F18 -> 300
A42: Grundstücksgröße | E42: x | F42: =IF(F12>0,F12,F11) -> 500
A43: Anpassung an die Grundstücksgröße | B43: =IF(EingabeMaske!D27=0,"","[ UK WO bei "&F42&" m²: "&ROUND(LOOKUP(EingabeMaske!A20,Bewertungsgrundstück,'Werte 2'!E2:E4),2)&" / UK BRW bei " &F19&" m²: "&ROUND(LOOKUP(EingabeMaske!A20,Bewertungsgrundstück,'Werte 2'!F2:F4),2)&" ]") -> [ UK WO bei 500 m²: 1 / UK BRW bei 500 m²: 1 ] | E43: x | F43: =ROUND(LOOKUP(EingabeMaske!A20,Bewertungsgrundstück,'Werte 2'!G2:G4),2) -> 1
A44: Wohnfläche | E44: / | F44: =EingabeMaske!D22 -> 145
A45: Bodenwertanteil des Wertermittlungsobjekts pro m² Wf (ggf. nach Grundstücksgröße angepasst) | E45: = | F45: =ROUND(F41*F42*F43/F44,2) -> 1034.48
A46: (Die Umrechnungskoeffizienten zur Grundstücksgrößenanpassung wurden anhand der vom OGA zur Verfügung gestellten Formel ermittelt und können geringfügig von der veröffentlichen Tabelle im LGMB 2019 abweichen.)
A47: Ermittlung des Richtwertes mit dem Bodenwertanteil des Wertermittlungsobjekts
A48: Ausgangswert ist hier der Vergleichsfaktor (RW) des RWG. Dessen Bodenwertanteil wird ersetzt durch den Bodenwertanteil des individuellen Wertermittlungsobjektes.
A49: Richtwert pro m² Wf | F49: =F32 -> 
A50: Sachwertfaktor | E50: / | F50: =F33 -> 
A51: Richtwert ohne Marktanpassung | E51: = | F51: =ROUND(F49/F50,2) -> 
A52: Bodenwertanteil des Wertermittlungsobjekts pro m² Wf | E52: + | F52: =F45 -> 1034.48
A53: Bodenwertanteil des Richtwertobjekts | E53: - | F53: =F35 -> 0
A54: Anfangswert (RW0): | E54: = | F54: =ROUND(F51+F52-F53,2) -> 
A57: Sachwertfaktor [SWF(WO)]: | E57: x | F57: ='Vergleichsdaten 2022'!B38 -> 
A59: Zwischenergebnis (RW1): | E59: = | F59: =ROUND(F57*F54,2) -> 
A62: 2. Anpassung an den Gebäudestandard (RW2)
A63: Herauslösen des Gebäudewertanteils aus (RW1) | F63: =F59 -> 
A64: Zwischenergebnis [RW1(BW)]: | B64: ="[ "&F52&" €/m² x "&F57&" ]" ->  | E64: - | F64: =ROUND(F45*F57,2) -> 
A65: Zwischenergebnis [RW1(Geb)]: | E65: = | F65: =ROUND(F59-F64,2) -> 
A67: Anpassung an den Gebäudestandard
A68: UKGST(WO): | B68: ="[ bei Gebäudestandard: "&EingabeMaske!D21&" ]" -> [ bei Gebäudestandard: 3 ] | E68: x | F68: =ROUND('Vergleichsdaten 2022'!C48+'Berechnung und Ergebnis'!F13*'Vergleichsdaten 2022'!C49+'Vergleichsdaten 2022'!C50*'Berechnung und Ergebnis'!F13^2+'Vergleichsdaten 2022'!C51*'Berechnung und Ergebnis'!F13^3+'Vergleichsdaten 2022'!C52*'Berechnung und Ergebnis'!F13^4,3) -> 1.276
A69: UKGST(RWG): | B69: ="[ bei Gebäudestandard: "&F27&" ]" -> [ bei Gebäudestandard: 3 ] | E69: / | F69: =ROUND('Vergleichsdaten 2022'!C48+'Vergleichsdaten 2022'!C49*'Vergleichsdaten 2022'!B6+'Vergleichsdaten 2022'!C50*'Vergleichsdaten 2022'!B6^2+'Vergleichsdaten 2022'!C51*'Vergleichsdaten 2022'!B6^3+'Vergleichsdaten 2022'!C52*'Vergleichsdaten 2022'!B6^4,3) -> 1.276
A70: Zwischenergebnis [RW2(Geb)]: | E70: = | F70: =ROUND(F68/F69*'Berechnung und Ergebnis'!F65,2) -> 
A72: 3. Anpassung an die Restnutzungsdauer
A73: Zwischenergebnis [RW2(Geb)]: | F73: =F70 -> 
A74: Zwischenergebnis [Restwert (WO)]: | B74: [gem. Alterswertminderungsfunktion des OGA] | E74: x | F74: =ROUND(IF(F17/F16=1,1,'Vergleichsdaten 2022'!C70*(F17/F16)^2+F17/F16*'Vergleichsdaten 2022'!C71),4) -> 0.8187
A75: Zwischenergebnis [Restwert (RWG)]: | B75: [gem. Alterswertminderungsfunktion des OGA] | E75: / | F75: =ROUND('Vergleichsdaten 2022'!C70*('Vergleichsdaten 2022'!B8/'Vergleichsdaten 2022'!B7)^2+'Vergleichsdaten 2022'!C71*'Vergleichsdaten 2022'!B8/'Vergleichsdaten 2022'!B7,4) -> 0.8187
A77: Zwischenergebnis [RW3(Geb)]: | E77: = | F77: =ROUND(F70*F74/F75,2) -> 
A80: 4. Anpassung an die Wohnfläche (WF)
A81: Zwischenergebnis [RW3(Geb)]: | F81: =F77 -> 
A82: UKWF(WO): | B82: ="[ bei Wohnfläche: "&F14&" m² ]" -> [ bei Wohnfläche: 145 m² ] | E82: x | F82: =ROUND('Vergleichsdaten 2022'!C80*LN('Berechnung und Ergebnis'!F14)+'Vergleichsdaten 2022'!C81,2) -> 1
A83: UKWF(RWG): | B83: ="[ bei Wohnfläche: "&F28&" m² ]" -> [ bei Wohnfläche: 145 m² ] | E83: / | F83: 1
A85: Zwischenergebnis [RW4(Geb)]: | E85: = | F85: =ROUND(F77*(F82/F83),2) -> 
A88: 5. Zuschlag zur Berücksichtigung von Einliegerwohnungen (ELW) (RW5) (nur am Gebäudewertanteil)
A89: Zwischenergebnis [RW4(Geb)]: | F89: =F85 -> 
A90: FELW: | B90: =IF(F90=1,"",IF(F90=1.05,"[ bei ELW zu max. 1/3 der WF der Hauptwohnung:]",IF(F90=1.07,"[ bei ELW über 1/3 bis zu 2/3 der WF der Hauptwohnung)"))) ->  | E90: x | F90: =ROUND(EingabeMaske!D32,2) -> 1
A92: Zwischenergebnis [RW5(Geb)]: | E92: = | F92: =ROUND(F85*F90,2) -> 
A95: 6. Berücksichtigung der veränderten Wertverhältnisse zwischen dem Richtwertstichtag und dem Wertermittlungsstichtag (RW6)
A96: Zwischenergebnis [RW5(Geb)]: | F96: =F92 -> 
A97: Zwischenergebnis [RW1(BW)]: | E97: + | F97: =F64 -> 
A98: Gesamtwert [RW1(BW) + RW5(Geb)] | E98: = | F98: =ROUND(F96+F97,2) -> 
A99: UK Wertermittlungsstichtag (Index): | E99: x | F99: =EingabeMaske!D17 -> 0
A100: UK Richtwertstichtag (Index): | E100: / | F100: =EingabeMaske!M16 -> 0
A101: Zwischenergebnis (RW6): | F101: =ROUND(F98*F99/F100,2) -> 
A104: 7. Zuschläge für Außenanlagen (z.B. Erschließung/Befestigung) und Nebengebäude (z.B. Stellplätze, Garagen und Carports) (Zeitwerte)
A105: Zwischenergebnis (RW6): | F105: =F101 -> 
A106: bauliche und nichtbauliche Außenanlagen (€/m² Wohnfläche) | B106: ="[ "&EingabeMaske!D28&" €/m² / "&F14&" m² ]" ->  | E106: + | F106: =ROUND(F20/F14,2) -> 
A107: untergeordnete Nebengebäude (€/m² Wohnfläche) | B107: ="[ "&EingabeMaske!D29&" €/m² / "&F14&" m² ]" -> [ 0 €/m² / 145 m² ] | E107: + | F107: =ROUND(F21/F14,2) -> 0
A109: Zwischenergebnis (RW7): | E109: = | F109: =ROUND(F105+F106+F107,2) -> 
A111: Wohnfäche | E111: x | F111: =F14 -> 145
A113: vorläufiger Vergleichswert (vVW) | E113: = | F113: =ROUND(F109*F111,2) -> 
A115: 8. Berücksichtigung der restlichen Fläche des Grundstücks
A117: =IF(B117=0,"",LOOKUP(EingabeMaske!A20,Bewertungsgrundstück,'Werte 2'!I2:I4)) ->  | B117: =F11-F42 -> 0 | C117: x | D117: =F18 -> 300 | E117: = | F117: =ROUND(B117*D117,2) -> 0
A118: =IF(B117=0,"",LOOKUP(EingabeMaske!A20,Bewertungsgrundstück,'Werte 2'!J2:J4)) ->  | B118: =IF(EingabeMaske!D27=0,"",IF((F118>0.3)*(B117>0),"[ UK WO bei "&B117&" m²: "&ROUND(LOOKUP(EingabeMaske!A20,Bewertungsgrundstück,'Werte 2'!L2:L4),2)&" / UK BRW bei " &F19&" m²: "&ROUND(LOOKUP(EingabeMaske!A20,Bewertungsgrundstück,'Werte 2'!F2:F4),2)&" ]","")) ->  | E118: x | F118: =ROUND(LOOKUP(EingabeMaske!A20,Bewertungsgrundstück,'Werte 2'!M2:M4),2) -> 0
A119: =IF(EingabeMaske!D27=0,"",IF(F118>0.3,"(Die Umrechnungskoeffizienten zur Grundstücksgrößenanpassung wurden anhand der Formel des OGA ermittelt und können geringfügig von der Tabelle des Landesgrundstücksmarktberichts 2017 abweichen.)","")) ->  | E119: = | F119: =ROUND(F117*F118,2) -> 0
E120: + | F120: =F113 -> 
A121: Vergleichswert (VW) | E121: = | F121: =ROUND(F113+F119,2) -> 
A124: =IF((F11*F18+20000)>=F121,"Der vorläufige Vergleichswert ist kleiner/gleich dem Bodenwert (unter der Fiktion unbebaut). Eingaben bitte auf Plausibiltät (insbesondere zur RND) überprüfen!","") -> 
A126: Vergleichswert (gerundet) | D126: =ROUND(F121,-3) -> 
A130: =EingabeMaske!A36 -> Quelle: Oberer Gutachterausschuss für Grundstückswerte Rheinland-Pfalz gem. Landesgrundstückmarkbericht 2021

Sheet Vergleichsdaten 2021 (hidden)
A1: Quelle: Oberer Gutachterausschuss für Grundstückswerte Rheinland-Pfalz gem. Landesgrundstückmarkbericht 2021 | E1: EFH-Rechner, Version 2.2 - 2021
A5: Berücksichtigung der Wertverhältnisse zwischen dem Richtwertstichtag und dem Wertermittlungsstichtag
B6: =EingabeMaske!D$16 -> 2020-01-01 | E6: Interpolation! | H6: Ergänzung
B7: =B6-DATE(YEAR(B6)-1,12,31.25) -> 1 | C7: 2023 | D7: =(G7-G8)*$B$15/365+G8 -> 152 | E7: 2022-01-01 | F7: 2022-12-31 | G7: 152 | H7: =ROUND(IF(YEAR($B$6)+1=C7,D7,0),2) -> 0
B8: =B6-DATE(YEAR(B6)-1,12,31.25) -> 1 | C8: 2022 | D8: 152 | E8: 2021-01-01 | F8: 2021-12-31 | G8: 152 | H8: =ROUND(IF(YEAR($B$6)+1=C8,D8,0),2) -> 0
B9: =B6-DATE(YEAR(B6)-1,12,31.25) -> 1 | C9: 2021 | D9: =(G9-G10)*$B$15/365+G10 -> 142.0273973 | E9: 2020-01-01 | F9: 2020-12-31 | G9: 152 | H9: 142.03
B10: =B6-DATE(YEAR(B6)-1,12,31.25) -> 1 | C10: 2020 | D10: 133.0246575 | E10: 2019-01-01 | F10: 2019-12-31 | G10: 142 | H10: 0
B11: =B6-DATE(YEAR(B6)-1,12,31.25) -> 1 | C11: 2019 | D11: =(G11-G12)*$B$15/365+G12 -> 125.0219178 | E11: 2018-01-01 | F11: 2018-12-31 | G11: 133 | H11: 0
B12: =B6-DATE(YEAR(B6)-1,12,31.25) -> 1 | C12: 2018 | D12: 118.0191781 | E12: 2017-01-01 | F12: 2017-12-31 | G12: 125 | H12: 0
B13: =B6-DATE(YEAR(B6)-1,12,31.25) -> 1 | C13: 2017 | D13: 112.0164384 | E13: 2016-01-01 | F13: 2016-12-31 | G13: 118 | H13: 0
B14: =B6-DATE(YEAR(B6)-1,12,31.25) -> 1 | C14: 2016 | D14: 109.0082192 | E14: 2015-01-01 | F14: 2015-12-31 | G14: 112 | H14: 0
B15: =B6-DATE(YEAR(B6)-1,12,31.25) -> 1 | C15: 2015 | D15: 108.0027397 | E15: 2014-01-01 | F15: 2014-12-31 | G15: 109 | H15: 0
B16: =B6-DATE(YEAR(B6)-1,12,31.25) -> 1 | C16: 2014 | D16: 106.0054795 | E16: 2013-01-01 | F16: 2013-12-31 | G16: 108 | H16: 0
B17: =B6-DATE(YEAR(B6)-1,12,31.25) -> 1 | C17: 2013 | D17: 104.0054795 | E17: 2012-01-01 | F17: 2012-12-31 | G17: 106 | H17: 0
B18: =B6-DATE(YEAR(B6)-1,12,31.25) -> 1 | C18: 2012 | D18: 101.0082192 | E18: 2011-01-01 | F18: 2011-12-31 | G18: 104 | H18: 0
B19: =B6-DATE(YEAR(B6)-1,12,31.25) -> 1 | C19: 2011 | D19: 100.0027397 | E19: 2010-01-01 | F19: 2010-12-31 | G19: 101 | H19: 0
B20: =B6-DATE(YEAR(B6)-1,12,31.25) -> 1 | C20: 2010 | D20: 99.00273973 | E20: 2009-01-01 | F20: 2009-12-31 | G20: 100 | H20: 0
B21: =B6-DATE(YEAR(B6)-1,12,31.25) -> 1 | C21: 2009 | D21: 98.00273973 | E21: 2008-01-01 | F21: 2008-12-31 | G21: 99 | H21: 0
B22: =B6-DATE(YEAR(B6)-1,12,31.25) -> 1 | C22: 2008 | D22: 95.00821918 | E22: 2007-01-01 | F22: 2007-12-31 | G22: 98 | H22: 0
B23: =B6-DATE(YEAR(B6)-1,12,31.25) -> 1 | C23: 2007 | D23: 92.00821918 | E23: 2006-01-01 | F23: 2006-12-31 | G23: 95 | H23: 0
B24: =B6-DATE(YEAR(B6)-1,12,31.25) -> 1 | C24: 2006 | E24: 2005-01-01 | F24: 2005-12-31 | G24: 92 | H24: 0
H25: =SUM(H7:H24) -> 142.03
B28: Bei Indexfortschreibung muss in folgenden Feldern der anderen Tabellenblätter eine Anpassung erfolgen:
B29: EingabeMaske, Kommentare in E9 und E10 sowie Formel in Feld A 10
B30: Berechnung und Ergebnis, Formeln in Feld C75 und Feld D 75
A33: Marktsegment 1
B34: =EingabeMaske!D$16 -> 2020-01-01 | E34: Interpolation! | H34: Ergänzung
B35: =B34-DATE(YEAR(B34)-1,12,31.25) -> 1 | C35: 2023 | D35: =(G35-G36)*$B$15/365+G36 -> 140 | E35: 2022-01-01 | F35: 2022-12-31 | G35: 140 | H35: =ROUND(IF(YEAR($B$6)+1=C35,D35,0),2) -> 0
B36: =B34-DATE(YEAR(B34)-1,12,31.25) -> 1 | C36: 2022 | D36: 140 | E36: 2021-01-01 | F36: 2021-12-31 | G36: 140 | H36: =ROUND(IF(YEAR($B$6)+1=C36,D36,0),2) -> 0
B37: =B34-DATE(YEAR(B34)-1,12,31.25) -> 1 | C37: 2021 | D37: =(G37-G38)*$B$15/365+G38 -> 133.0191781 | E37: 2020-01-01 | F37: 2020-12-31 | G37: 140 | H37: =ROUND(IF(YEAR($B$6)+1=C37,D37,0),2) -> 133.02
B38: =B34-DATE(YEAR(B34)-1,12,31.25) -> 1 | C38: 2020 | D38: =(G38-G39)*$B$15/365+G39 -> 123.0273973 | E38: 2019-01-01 | F38: 2019-12-31 | G38: 133 | H38: 0
B39: =B34-DATE(YEAR(B34)-1,12,31.25) -> 1 | C39: 2019 | D39: =(G39-G40)*$B$15/365+G40 -> 116.0191781 | E39: 2018-01-01 | F39: 2018-12-31 | G39: 123 | H39: 0
B40: =B34-DATE(YEAR(B34)-1,12,31.25) -> 1 | C40: 2018 | D40: =(G40-G41)*$B$15/365+G41 -> 109.0191781 | E40: 2017-01-01 | F40: 2017-12-31 | G40: 116 | H40: 0
B41: =B34-DATE(YEAR(B34)-1,12,31.25) -> 1 | C41: 2017 | D41: 105.0109589 | E41: 2016-01-01 | F41: 2016-12-31 | G41: 109 | H41: 0
B42: =B34-DATE(YEAR(B34)-1,12,31.25) -> 1 | C42: 2016 | D42: 101.0109589 | E42: 2015-01-01 | F42: 2015-12-31 | G42: 105 | H42: 0
B43: =B34-DATE(YEAR(B34)-1,12,31.25) -> 1 | C43: 2015 | D43: 100.0027397 | E43: 2014-01-01 | F43: 2014-12-31 | G43: 101 | H43: 0
B44: =B34-DATE(YEAR(B34)-1,12,31.25) -> 1 | C44: 2014 | D44: 100 | E44: 2013-01-01 | F44: 2013-12-31 | G44: 100 | H44: 0
B45: =B34-DATE(YEAR(B34)-1,12,31.25) -> 1 | C45: 2013 | D45: 100 | E45: 2012-01-01 | F45: 2012-12-31 | G45: 100 | H45: 0
B46: =B34-DATE(YEAR(B34)-1,12,31.25) -> 1 | C46: 2012 | D46: 99.00273973 | E46: 2011-01-01 | F46: 2011-12-31 | G46: 100 | H46: 0
B47: =B34-DATE(YEAR(B34)-1,12,31.25) -> 1 | C47: 2011 | D47: 99.99726027 | E47: 2010-01-01 | F47: 2010-12-31 | G47: 99 | H47: 0
B48: =B34-DATE(YEAR(B34)-1,12,31.25) -> 1 | C48: 2010 | D48: 99.00273973 | E48: 2009-01-01 | F48: 2009-12-31 | G48: 100 | H48: 0
B49: =B34-DATE(YEAR(B34)-1,12,31.25) -> 1 | C49: 2009 | D49: 98.00273973 | E49: 2008-01-01 | F49: 2008-12-31 | G49: 99 | H49: 0
B50: =B34-DATE(YEAR(B34)-1,12,31.25) -> 1 | C50: 2008 | D50: 95.00821918 | E50: 2007-01-01 | F50: 2007-12-31 | G50: 98 | H50: 0
B51: =B34-DATE(YEAR(B34)-1,12,31.25) -> 1 | C51: 2007 | D51: 92.00821918 | E51: 2006-01-01 | F51: 2006-12-31 | G51: 95 | H51: 0
B52: =B34-DATE(YEAR(B34)-1,12,31.25) -> 1 | C52: 2006 | E52: 2005-01-01 | F52: 2005-12-31 | G52: 92 | H52: 0
H53: =SUM(H35:H52) -> 133.02 | I53: =IF(EingabeMaske!M$14=1,H53,0) -> 0 | J53: =IF(EingabeMaske!M$14=1,G38,0) -> 0
I54: =B34 -> 2020-01-01 | J54: 2020-01-01
A56: Marktsegment 2
B57: =EingabeMaske!D$16 -> 2020-01-01 | E57: Interpolation! | H57: Ergänzung
B58: =B57-DATE(YEAR(B57)-1,12,31.25) -> 1 | C58: 2023 | D58: =(G58-G59)*$B$15/365+G59 -> 144 | E58: 2022-01-01 | F58: 2022-12-31 | G58: 144 | H58: =ROUND(IF(YEAR($B$6)+1=C58,D58,0),2) -> 0
B59: =B57-DATE(YEAR(B57)-1,12,31.25) -> 1 | C59: 2022 | D59: 144 | E59: 2021-01-01 | F59: 2021-12-31 | G59: 144 | H59: =ROUND(IF(YEAR($B$6)+1=C59,D59,0),2) -> 0
B60: =B57-DATE(YEAR(B57)-1,12,31.25) -> 1 | C60: 2021 | D60: =(G60-G61)*$B$15/365+G61 -> 136.0219178 | E60: 2020-01-01 | F60: 2020-12-31 | G60: 144 | H60: =ROUND(IF(YEAR($B$6)+1=C60,D60,0),2) -> 136.02
B61: =B57-DATE(YEAR(B57)-1,12,31.25) -> 1 | C61: 2020 | D61: =(G61-G62)*$B$15/365+G62 -> 129.0191781 | E61: 2019-01-01 | F61: 2019-12-31 | G61: 136 | H61: 0
B62: =B57-DATE(YEAR(B57)-1,12,31.25) -> 1 | C62: 2019 | D62: =(G62-G63)*$B$15/365+G63 -> 123.0164384 | E62: 2018-01-01 | F62: 2018-12-31 | G62: 129 | H62: 0
B63: =B57-DATE(YEAR(B57)-1,12,31.25) -> 1 | C63: 2018 | D63: =(G63-G64)*$B$15/365+G64 -> 117.0164384 | E63: 2017-01-01 | F63: 2017-12-31 | G63: 123 | H63: 0
B64: =B57-DATE(YEAR(B57)-1,12,31.25) -> 1 | C64: 2017 | D64: 112.0136986 | E64: 2016-01-01 | F64: 2016-12-31 | G64: 117 | H64: 0
B65: =B57-DATE(YEAR(B57)-1,12,31.25) -> 1 | C65: 2016 | D65: 108.0109589 | E65: 2015-01-01 | F65: 2015-12-31 | G65: 112 | H65: 0
B66: =B57-DATE(YEAR(B57)-1,12,31.25) -> 1 | C66: 2015 | D66: 105.0082192 | E66: 2014-01-01 | F66: 2014-12-31 | G66: 108 | H66: 0
B67: =B57-DATE(YEAR(B57)-1,12,31.25) -> 1 | C67: 2014 | D67: 104.0027397 | E67: 2013-01-01 | F67: 2013-12-31 | G67: 105 | H67: 0
B68: =B57-DATE(YEAR(B57)-1,12,31.25) -> 1 | C68: 2013 | D68: 103.0027397 | E68: 2012-01-01 | F68: 2012-12-31 | G68: 104 | H68: 0
B69: =B57-DATE(YEAR(B57)-1,12,31.25) -> 1 | C69: 2012 | D69: 101.0054795 | E69: 2011-01-01 | F69: 2011-12-31 | G69: 103 | H69: 0
B70: =B57-DATE(YEAR(B57)-1,12,31.25) -> 1 | C70: 2011 | D70: 100.0027397 | E70: 2010-01-01 | F70: 2010-12-31 | G70: 101 | H70: 0
B71: =B57-DATE(YEAR(B57)-1,12,31.25) -> 1 | C71: 2010 | D71: 99.00273973 | E71: 2009-01-01 | F71: 2009-12-31 | G71: 100 | H71: 0
B72: =B57-DATE(YEAR(B57)-1,12,31.25) -> 1 | C72: 2009 | D72: 98.00273973 | E72: 2008-01-01 | F72: 2008-12-31 | G72: 99 | H72: 0
B73: =B57-DATE(YEAR(B57)-1,12,31.25) -> 1 | C73: 2008 | D73: 95.00821918 | E73: 2007-01-01 | F73: 2007-12-31 | G73: 98 | H73: 0
B74: =B57-DATE(YEAR(B57)-1,12,31.25) -> 1 | C74: 2007 | D74: 92.00821918 | E74: 2006-01-01 | F74: 2006-12-31 | G74: 95 | H74: 0
B75: =B57-DATE(YEAR(B57)-1,12,31.25) -> 1 | C75: 2006 | E75: 2005-01-01 | F75: 2005-12-31 | G75: 92 | H75: 0
H76: =SUM(H58:H75) -> 136.02 | I76: =IF(EingabeMaske!M$14=2,H76,0) -> 0 | J76: =IF(EingabeMaske!M$14=2,G61,0) -> 0
I77: =B57 -> 2020-01-01 | J77: 2020-01-01
A79: Marktsegment 3
B80: =EingabeMaske!D$16 -> 2020-01-01 | E80: Interpolation! | H80: Ergänzung
B81: =B80-DATE(YEAR(B80)-1,12,31.25) -> 1 | C81: 2023 | D81: =(G81-G82)*$B$15/365+G82 -> 161 | E81: 2022-01-01 | F81: 2022-12-31 | G81: 161 | H81: =ROUND(IF(YEAR($B$6)+1=C81,D81,0),2) -> 0
B82: =B80-DATE(YEAR(B80)-1,12,31.25) -> 1 | C82: 2022 | D82: 161 | E82: 2021-01-01 | F82: 2021-12-31 | G82: 161 | H82: =ROUND(IF(YEAR($B$6)+1=C82,D82,0),2) -> 0
B83: =B80-DATE(YEAR(B80)-1,12,31.25) -> 1 | C83: 2021 | D83: =(G83-G84)*$B$15/365+G84 -> 149.0328767 | E83: 2020-01-01 | F83: 2020-12-31 | G83: 161 | H83: =ROUND(IF(YEAR($B$6)+1=C83,D83,0),2) -> 149.03
B84: =B80-DATE(YEAR(B80)-1,12,31.25) -> 1 | C84: 2020 | D84: =(G84-G85)*$B$15/365+G85 -> 140.0246575 | E84: 2019-01-01 | F84: 2019-12-31 | G84: 149 | H84: 0
B85: =B80-DATE(YEAR(B80)-1,12,31.25) -> 1 | C85: 2019 | D85: =(G85-G86)*$B$15/365+G86 -> 130.0273973 | E85: 2018-01-01 | F85: 2018-12-31 | G85: 140 | H85: 0
B86: =B80-DATE(YEAR(B80)-1,12,31.25) -> 1 | C86: 2018 | D86: =(G86-G87)*$B$15/365+G87 -> 121.0246575 | E86: 2017-01-01 | F86: 2017-12-31 | G86: 130 | H86: 0
B87: =B80-DATE(YEAR(B80)-1,12,31.25) -> 1 | C87: 2017 | D87: 114.0191781 | E87: 2016-01-01 | F87: 2016-12-31 | G87: 121 | H87: 0
B88: =B80-DATE(YEAR(B80)-1,12,31.25) -> 1 | C88: 2016 | D88: 111.0082192 | E88: 2015-01-01 | F88: 2015-12-31 | G88: 114 | H88: 0
B89: =B80-DATE(YEAR(B80)-1,12,31.25) -> 1 | C89: 2015 | D89: 109.0054795 | E89: 2014-01-01 | F89: 2014-12-31 | G89: 111 | H89: 0
B90: =B80-DATE(YEAR(B80)-1,12,31.25) -> 1 | C90: 2014 | D90: 107.0054795 | E90: 2013-01-01 | F90: 2013-12-31 | G90: 109 | H90: 0
B91: =B80-DATE(YEAR(B80)-1,12,31.25) -> 1 | C91: 2013 | D91: 104.0082192 | E91: 2012-01-01 | F91: 2012-12-31 | G91: 107 | H91: 0
B92: =B80-DATE(YEAR(B80)-1,12,31.25) -> 1 | C92: 2012 | D92: 102.0054795 | E92: 2011-01-01 | F92: 2011-12-31 | G92: 104 | H92: 0
B93: =B80-DATE(YEAR(B80)-1,12,31.25) -> 1 | C93: 2011 | D93: 100.0054795 | E93: 2010-01-01 | F93: 2010-12-31 | G93: 102 | H93: 0
B94: =B80-DATE(YEAR(B80)-1,12,31.25) -> 1 | C94: 2010 | D94: 99.00273973 | E94: 2009-01-01 | F94: 2009-12-31 | G94: 100 | H94: 0
B95: =B80-DATE(YEAR(B80)-1,12,31.25) -> 1 | C95: 2009 | D95: 98.00273973 | E95: 2008-01-01 | F95: 2008-12-31 | G95: 99 | H95: 0
B96: =B80-DATE(YEAR(B80)-1,12,31.25) -> 1 | C96: 2008 | D96: 95.00821918 | E96: 2007-01-01 | F96: 2007-12-31 | G96: 98 | H96: 0
B97: =B80-DATE(YEAR(B80)-1,12,31.25) -> 1 | C97: 2007 | D97: 92.00821918 | E97: 2006-01-01 | F97: 2006-12-31 | G97: 95 | H97: 0
B98: =B80-DATE(YEAR(B80)-1,12,31.25) -> 1 | C98: 2006 | E98: 2005-01-01 | F98: 2005-12-31 | G98: 92 | H98: 0
H99: =SUM(H81:H98) -> 149.03 | I99: =IF(EingabeMaske!M$14=3,H99,0) -> 0 | J99: =IF(EingabeMaske!M$14=3,G84,0) -> 0
I100: =B80 -> 2020-01-01 | J100: 2020-01-01
A102: Marktsegment 4
B103: =EingabeMaske!D$16 -> 2020-01-01 | E103: Interpolation! | H103: Ergänzung
B104: =B103-DATE(YEAR(B103)-1,12,31.25) -> 1 | C104: 2023 | D104: =(G104-G105)*$B$15/365+G105 -> 164 | E104: 2022-01-01 | F104: 2022-12-31 | G104: 164 | H104: =ROUND(IF(YEAR($B$6)+1=C104,D104,0),2) -> 0
B105: =B103-DATE(YEAR(B103)-1,12,31.25) -> 1 | C105: 2022 | D105: 164 | E105: 2021-01-01 | F105: 2021-12-31 | G105: 164 | H105: =ROUND(IF(YEAR($B$6)+1=C105,D105,0),2) -> 0
B106: =B103-DATE(YEAR(B103)-1,12,31.25) -> 1 | C106: 2021 | D106: =(G106-G107)*$B$15/365+G107 -> 158.0164384 | E106: 2020-01-01 | F106: 2020-12-31 | G106: 164 | H106: =ROUND(IF(YEAR($B$6)+1=C106,D106,0),2) -> 158.02
B107: =B103-DATE(YEAR(B103)-1,12,31.25) -> 1 | C107: 2020 | D107: =(G107-G108)*$B$15/365+G108 -> 152.0164384 | E107: 2019-01-01 | F107: 2019-12-31 | G107: 158 | H107: 0
B108: =B103-DATE(YEAR(B103)-1,12,31.25) -> 1 | C108: 2019 | D108: =(G108-G109)*$B$15/365+G109 -> 142.0273973 | E108: 2018-01-01 | F108: 2018-12-31 | G108: 152 | H108: 0
B109: =B103-DATE(YEAR(B103)-1,12,31.25) -> 1 | C109: 2018 | D109: =(G109-G110)*$B$15/365+G110 -> 130.0328767 | E109: 2017-01-01 | F109: 2017-12-31 | G109: 142 | H109: 0
B110: =B103-DATE(YEAR(B103)-1,12,31.25) -> 1 | C110: 2017 | D110: 121.0246575 | E110: 2016-01-01 | F110: 2016-12-31 | G110: 130 | H110: 0
B111: =B103-DATE(YEAR(B103)-1,12,31.25) -> 1 | C111: 2016 | D111: 114.0191781 | E111: 2015-01-01 | F111: 2015-12-31 | G111: 121 | H111: 0
B112: =B103-DATE(YEAR(B103)-1,12,31.25) -> 1 | C112: 2015 | D112: 110.0109589 | E112: 2014-01-01 | F112: 2014-12-31 | G112: 114 | H112: 0
B113: =B103-DATE(YEAR(B103)-1,12,31.25) -> 1 | C113: 2014 | D113: 106.0109589 | E113: 2013-01-01 | F113: 2013-12-31 | G113: 110 | H113: 0
B114: =B103-DATE(YEAR(B103)-1,12,31.25) -> 1 | C114: 2013 | D114: 105.0027397 | E114: 2012-01-01 | F114: 2012-12-31 | G114: 106 | H114: 0
B115: =B103-DATE(YEAR(B103)-1,12,31.25) -> 1 | C115: 2012 | D115: 102.0082192 | E115: 2011-01-01 | F115: 2011-12-31 | G115: 105 | H115: 0
B116: =B103-DATE(YEAR(B103)-1,12,31.25) -> 1 | C116: 2011 | D116: 100.0054795 | E116: 2010-01-01 | F116: 2010-12-31 | G116: 102 | H116: 0
B117: =B103-DATE(YEAR(B103)-1,12,31.25) -> 1 | C117: 2010 | D117: 99.00273973 | E117: 2009-01-01 | F117: 2009-12-31 | G117: 100 | H117: 0
B118: =B103-DATE(YEAR(B103)-1,12,31.25) -> 1 | C118: 2009 | D118: 98.00273973 | E118: 2008-01-01 | F118: 2008-12-31 | G118: 99 | H118: 0
B119: =B103-DATE(YEAR(B103)-1,12,31.25) -> 1 | C119: 2008 | D119: 95.00821918 | E119: 2007-01-01 | F119: 2007-12-31 | G119: 98 | H119: 0
B120: =B103-DATE(YEAR(B103)-1,12,31.25) -> 1 | C120: 2007 | D120: 92.00821918 | E120: 2006-01-01 | F120: 2006-12-31 | G120: 95 | H120: 0
B121: =B103-DATE(YEAR(B103)-1,12,31.25) -> 1 | C121: 2006 | E121: 2005-01-01 | F121: 2005-12-31 | G121: 92 | H121: 0
H122: =SUM(H104:H121) -> 158.02 | I122: =IF(EingabeMaske!M$14=4,H122,0) -> 0 | J122: =IF(EingabeMaske!M$14=4,G107,0) -> 0
I123: =B103 -> 2020-01-01 | J123: 2020-01-01
A125: Marktsegment 5
B126: =EingabeMaske!D$16 -> 2020-01-01 | E126: Interpolation! | H126: Ergänzung
B127: =B126-DATE(YEAR(B126)-1,12,31.25) -> 1 | C127: 2023 | D127: =(G127-G128)*$B$15/365+G128 -> 191 | E127: 2022-01-01 | F127: 2022-12-31 | G127: 191 | H127: =ROUND(IF(YEAR($B$6)+1=C127,D127,0),2) -> 0
B128: =B126-DATE(YEAR(B126)-1,12,31.25) -> 1 | C128: 2022 | D128: 191 | E128: 2021-01-01 | F128: 2021-12-31 | G128: 191 | H128: =ROUND(IF(YEAR($B$6)+1=C128,D128,0),2) -> 0
B129: =B126-DATE(YEAR(B126)-1,12,31.25) -> 1 | C129: 2021 | D129: =(G129-G130)*$B$15/365+G130 -> 181.0273973 | E129: 2020-01-01 | F129: 2020-12-31 | G129: 191 | H129: =ROUND(IF(YEAR($B$6)+1=C129,D129,0),2) -> 181.03
B130: =B126-DATE(YEAR(B126)-1,12,31.25) -> 1 | C130: 2020 | D130: =(G130-G131)*$B$15/365+G131 -> 168.0356164 | E130: 2019-01-01 | F130: 2019-12-31 | G130: 181 | H130: 0
B131: =B126-DATE(YEAR(B126)-1,12,31.25) -> 1 | C131: 2019 | D131: =(G131-G132)*$B$15/365+G132 -> 156.0328767 | E131: 2018-01-01 | F131: 2018-12-31 | G131: 168 | H131: 0
B132: =B126-DATE(YEAR(B126)-1,12,31.25) -> 1 | C132: 2018 | D132: =(G132-G133)*$B$15/365+G133 -> 143.0356164 | E132: 2017-01-01 | F132: 2017-12-31 | G132: 156 | H132: 0
B133: =B126-DATE(YEAR(B126)-1,12,31.25) -> 1 | C133: 2017 | D133: 133.0273973 | E133: 2016-01-01 | F133: 2016-12-31 | G133: 143 | H133: 0
B134: =B126-DATE(YEAR(B126)-1,12,31.25) -> 1 | C134: 2016 | D134: 124.0246575 | E134: 2015-01-01 | F134: 2015-12-31 | G134: 133 | H134: 0
B135: =B126-DATE(YEAR(B126)-1,12,31.25) -> 1 | C135: 2015 | D135: 119.0136986 | E135: 2014-01-01 | F135: 2014-12-31 | G135: 124 | H135: 0
B136: =B126-DATE(YEAR(B126)-1,12,31.25) -> 1 | C136: 2014 | D136: 114.0136986 | E136: 2013-01-01 | F136: 2013-12-31 | G136: 119 | H136: 0
B137: =B126-DATE(YEAR(B126)-1,12,31.25) -> 1 | C137: 2013 | D137: 109.0136986 | E137: 2012-01-01 | F137: 2012-12-31 | G137: 114 | H137: 0
B138: =B126-DATE(YEAR(B126)-1,12,31.25) -> 1 | C138: 2012 | D138: 104.0136986 | E138: 2011-01-01 | F138: 2011-12-31 | G138: 109 | H138: 0
B139: =B126-DATE(YEAR(B126)-1,12,31.25) -> 1 | C139: 2011 | D139: 100.0109589 | E139: 2010-01-01 | F139: 2010-12-31 | G139: 104 | H139: 0
B140: =B126-DATE(YEAR(B126)-1,12,31.25) -> 1 | C140: 2010 | D140: 99.00273973 | E140: 2009-01-01 | F140: 2009-12-31 | G140: 100 | H140: 0
B141: =B126-DATE(YEAR(B126)-1,12,31.25) -> 1 | C141: 2009 | D141: 98.00273973 | E141: 2008-01-01 | F141: 2008-12-31 | G141: 99 | H141: 0
B142: =B126-DATE(YEAR(B126)-1,12,31.25) -> 1 | C142: 2008 | D142: 95.00821918 | E142: 2007-01-01 | F142: 2007-12-31 | G142: 98 | H142: 0
B143: =B126-DATE(YEAR(B126)-1,12,31.25) -> 1 | C143: 2007 | D143: 92.00821918 | E143: 2006-01-01 | F143: 2006-12-31 | G143: 95 | H143: 0
B144: =B126-DATE(YEAR(B126)-1,12,31.25) -> 1 | C144: 2006 | E144: 2005-01-01 | F144: 2005-12-31 | G144: 92 | H144: 0
H145: =SUM(H127:H144) -> 181.03 | I145: =IF(EingabeMaske!M$14=5,H145,0) -> 0 | J145: =IF(EingabeMaske!M$14=5,G130,0) -> 0
I146: =B126 -> 2020-01-01 | J146: 2020-01-01
A148: Marktsegment 6
B149: =EingabeMaske!D$16 -> 2020-01-01 | E149: Interpolation! | H149: Ergänzung
B150: =B149-DATE(YEAR(B149)-1,12,31.25) -> 1 | C150: 2023 | D150: =(G150-G151)*$B$15/365+G151 -> 197 | E150: 2022-01-01 | F150: 2022-12-31 | G150: 197 | H150: =ROUND(IF(YEAR($B$6)+1=C150,D150,0),2) -> 0
B151: =B149-DATE(YEAR(B149)-1,12,31.25) -> 1 | C151: 2022 | D151: 197 | E151: 2021-01-01 | F151: 2021-12-31 | G151: 197 | H151: =ROUND(IF(YEAR($B$6)+1=C151,D151,0),2) -> 0
B152: =B149-DATE(YEAR(B149)-1,12,31.25) -> 1 | C152: 2021 | D152: =(G152-G153)*$B$15/365+G153 -> 183.0383562 | E152: 2020-01-01 | F152: 2020-12-31 | G152: 197 | H152: =ROUND(IF(YEAR($B$6)+1=C152,D152,0),2) -> 183.04
B153: =B149-DATE(YEAR(B149)-1,12,31.25) -> 1 | C153: 2020 | D153: =(G153-G154)*$B$15/365+G154 -> 172.030137 | E153: 2019-01-01 | F153: 2019-12-31 | G153: 183 | H153: 0
B154: =B149-DATE(YEAR(B149)-1,12,31.25) -> 1 | C154: 2019 | D154: =(G154-G155)*$B$15/365+G155 -> 160.0328767 | E154: 2018-01-01 | F154: 2018-12-31 | G154: 172 | H154: 0
B155: =B149-DATE(YEAR(B149)-1,12,31.25) -> 1 | C155: 2018 | D155: =(G155-G156)*$B$15/365+G156 -> 148.0328767 | E155: 2017-01-01 | F155: 2017-12-31 | G155: 160 | H155: 0
B156: =B149-DATE(YEAR(B149)-1,12,31.25) -> 1 | C156: 2017 | D156: 135.0356164 | E156: 2016-01-01 | F156: 2016-12-31 | G156: 148 | H156: 0
B157: =B149-DATE(YEAR(B149)-1,12,31.25) -> 1 | C157: 2016 | D157: 127.0219178 | E157: 2015-01-01 | F157: 2015-12-31 | G157: 135 | H157: 0
B158: =B149-DATE(YEAR(B149)-1,12,31.25) -> 1 | C158: 2015 | D158: 120.0191781 | E158: 2014-01-01 | F158: 2014-12-31 | G158: 127 | H158: 0
B159: =B149-DATE(YEAR(B149)-1,12,31.25) -> 1 | C159: 2014 | D159: 113.0191781 | E159: 2013-01-01 | F159: 2013-12-31 | G159: 120 | H159: 0
B160: =B149-DATE(YEAR(B149)-1,12,31.25) -> 1 | C160: 2013 | D160: 106.0191781 | E160: 2012-01-01 | F160: 2012-12-31 | G160: 113 | H160: 0
B161: =B149-DATE(YEAR(B149)-1,12,31.25) -> 1 | C161: 2012 | D161: 101.0136986 | E161: 2011-01-01 | F161: 2011-12-31 | G161: 106 | H161: 0
B162: =B149-DATE(YEAR(B149)-1,12,31.25) -> 1 | C162: 2011 | D162: 100.0027397 | E162: 2010-01-01 | F162: 2010-12-31 | G162: 101 | H162: 0
B163: =B149-DATE(YEAR(B149)-1,12,31.25) -> 1 | C163: 2010 | D163: 99.00273973 | E163: 2009-01-01 | F163: 2009-12-31 | G163: 100 | H163: 0
B164: =B149-DATE(YEAR(B149)-1,12,31.25) -> 1 | C164: 2009 | D164: 98.00273973 | E164: 2008-01-01 | F164: 2008-12-31 | G164: 99 | H164: 0
B165: =B149-DATE(YEAR(B149)-1,12,31.25) -> 1 | C165: 2008 | D165: 95.00821918 | E165: 2007-01-01 | F165: 2007-12-31 | G165: 98 | H165: 0
B166: =B149-DATE(YEAR(B149)-1,12,31.25) -> 1 | C166: 2007 | D166: 92.00821918 | E166: 2006-01-01 | F166: 2006-12-31 | G166: 95 | H166: 0
B167: =B149-DATE(YEAR(B149)-1,12,31.25) -> 1 | C167: 2006 | E167: 2005-01-01 | F167: 2005-12-31 | G167: 92 | H167: 0
H168: =SUM(H150:H167) -> 183.04 | I168: =IF(EingabeMaske!M$14=6,H168,0) -> 0 | J168: =IF(EingabeMaske!M$14=6,G153,0) -> 0
I169: =B149 -> 2020-01-01 | J169: 2020-01-01
I171: =ROUND(I53+I76+I99+I122+I145+I168,0) -> 0 | J171: =ROUND(J53+J76+J99+J122+J145+J168,0) -> 0

Sheet Vergleichsdaten 2022 (hidden)
A1: =EingabeMaske!A36 -> Quelle: Oberer Gutachterausschuss für Grundstückswerte Rheinland-Pfalz gem. Landesgrundstückmarkbericht 2021 | E1: =EingabeMaske!D1 -> EFH-Rechner, Version 1 - 2023
A3: Wohnfläche | B3: 145
A4: Gebäudesachwert ohne Außenanlagen und
A5: Nebengebäude zum Stichtag 1.1.2020 | B5: =B3*EingabeMaske!M17/B12 ->  | D5: =B5*J37 -> 
A6: Gebäudestandard | B6: 3
A7: Gesamtnutzungsdauer (GND) | B7: 70
A8: Restnutzungsdauer (RND) | B8: 55
A9: Zeitwert der Außen- und Nebenanlagen | B9: 0
A10: Zeitwert der Außen- und Nebenanlagen | B10: 0
A11: Grundstücksgröße | B11: 500
A12: Sachwertfaktor (freistehend) | B12: =ROUND(VLOOKUP(EingabeMaske!B13,'Vergleichsfaktoren 2021 (2)'!A8:I3023,9,FALSE),2) -> 0
A14: 1) Die Alterswertminderung des Herstellungswertes des Gebäudes ist bereits im Gebäudesachwert enthalten.
B16: WO | I16: Richtwert
A17: Objektart | B17: EFH / ZFH | I17: =B17 -> EFH / ZFH
A18: Bodenwertniveau | B18: =EingabeMaske!D26 -> 300 | C18: 40 | D18: 70 | E18: 120 | F18: 210 | G18: 210 | H18: 430 | I18: =EingabeMaske!M26 -> 0
A19: vorläufiger Sachwert | B19: ='Berechnung und Ergebnis'!F54*'Berechnung und Ergebnis'!F14 ->  | C19: =$B19 ->  | D19: =$B19 ->  | I19: =EingabeMaske!M17/B12*J37*B3 -> 
A20: Stichtag | B20: 2020-01-01 | C20: 2020-01-01 | D20: 2020-01-01 | E20: 2020-01-01 | F20: 2020-01-01 | G20: 2020-01-01 | H20: 2020-01-01 | I20: =B20 -> 2020-01-01
A21: Stichtag als Zahl | B21: =B20 -> 43831 | C21: 43831 | D21: 43831 | E21: 43831 | F21: 43831 | G21: 43831 | H21: 43831 | I21: 43831
A23: Marktsegment | B23: =EingabeMaske!M14 -> 0 | C23: 1 | D23: 2 | E23: 3 | F23: 4 | G23: 5 | H23: 6 | I23: 0
A24: a | B24: =IF(B$23=C$23,C24,IF(B$23=D$23,D24,IF(B$23=E$23,E24,IF(B$23=F$23,F24,IF(B$23=G$23,G24,IF(B$23=H$23,H24)))))) -> FALSE | C24: 0.989189 | D24: 0.364451 | E24: 0.474685 | F24: 0.232005 | G24: 0.232005 | H24: 1.127266 | I24: FALSE
A25: b | B25: =IF(B$23=C$23,C25,IF(B$23=D$23,D25,IF(B$23=E$23,E25,IF(B$23=F$23,F25,IF(B$23=G$23,G25,IF(B$23=H$23,H25)))))) -> FALSE | C25: 0.093283 | D25: 0.095379 | E25: 0.065542 | F25: 0.121259 | G25: 0.121259 | H25: 0.075494 | I25: FALSE
A26: c | B26: =IF(B$23=C$23,C26,IF(B$23=D$23,D26,IF(B$23=E$23,E26,IF(B$23=F$23,F26,IF(B$23=G$23,G26,IF(B$23=H$23,H26)))))) -> FALSE | C26: -0.219502 | D26: -0.223782 | E26: -0.279834 | F26: -0.210385 | G26: -0.210385 | H26: -0.272897 | I26: FALSE
A27: d | B27: =IF(B$23=C$23,C27,IF(B$23=D$23,D27,IF(B$23=E$23,E27,IF(B$23=F$23,F27,IF(B$23=G$23,G27,IF(B$23=H$23,H27)))))) -> FALSE | C27: =5.0203*10^-5 -> 5.0203e-05 | D27: =7.5872*10^-5 -> 7.5872e-05 | E27: =9.13511*10^-5 -> 9.13511e-05 | F27: =8.25108*10^-5 -> 8.25108e-05 | G27: =8.25108*10^-5 -> 8.25108e-05 | H27: =7.35282*10^-5 -> 7.35282e-05 | I27: FALSE
A28: e | B28: =IF(B$23=C$23,C28,IF(B$23=D$23,D28,IF(B$23=E$23,E28,IF(B$23=F$23,F28,IF(B$23=G$23,G28,IF(B$23=H$23,H28)))))) -> FALSE | C28: 2.718281828 | D28: 2.718281828 | E28: 2.718281828 | F28: 2.718281828 | G28: 2.718281828 | H28: 2.718281828 | I28: FALSE
A30: Sachwertfaktor | B30: =B24*B18^B25*B19^B26*B28^(B27*B21) ->  | C30: =C24*C18^C25*C19^C26*C28^(C27*C21) ->  | I30: =I24*I18^I25*I19^I26*I28^(I27*I21) -> 
A31: gerundet auf 2 Stellen | B31: =ROUND(B30,2) -> 
A33: Doppelhaushäfte / Reihenendhaus | B33: =ROUND((10.7016*B18^0.1647*B19^-0.2522)-(9.8596*B18^0.1844*B19^-0.2537),2) ->  | C33: 0.94 | H33: Doppelhaushäfte / Reihenendhaus | I33: =ROUND((10.7016*I18^0.1647*I19^-0.2522)-(9.8596*I18^0.1844*I19^-0.2537),2) ->  | J33: 0.94 | K33: (Faktor DHH)
B34: =B31+B33 ->  | I34: =I31+I33 -> 
A35: Reihenmittelhaus | B35: =ROUND((16.6179*B18^0.284*B19^-0.334)-(9.8596*B18^0.1844*B19^-0.2537),2) ->  | C35: 0.88 | H35: Reihenmittelhaus | I35: =ROUND((16.6179*I18^0.284*I19^-0.334)-(9.8596*I18^0.1844*I19^-0.2537),2) ->  | J35: 0.88 | K35: (Faktor RMH)
B36: =B31+B35 ->  | I36: =I31+I35 -> 
A37: Haustyp | B37: =IF(EingabeMaske!D18='Vergleichsdaten 2022'!A33,B33,IF(EingabeMaske!D18='Vergleichsdaten 2022'!A35,B35,0)) -> 0 | C37: =ROUND(IF(EingabeMaske!D18='Vergleichsdaten 2022'!A33,'Vergleichsdaten 2022'!C33,IF(EingabeMaske!D18='Vergleichsdaten 2022'!A35,'Vergleichsdaten 2022'!C35,1)),2) -> 1 | H37: Haustyp | I37: =IF(EingabeMaske!D18='Vergleichsdaten 2022'!H33,I33,IF(EingabeMaske!D18='Vergleichsdaten 2022'!H35,I35,0)) -> 0 | J37: =ROUND(IF(EingabeMaske!D18='Vergleichsdaten 2022'!H33,'Vergleichsdaten 2022'!J33,IF(EingabeMaske!D18='Vergleichsdaten 2022'!H35,'Vergleichsdaten 2022'!J35,1)),2) -> 1
B38: =B37+B31 ->  | I38: =I37+I31 ->  | J38: SWF bei | K38: =EingabeMaske!D18 -> freistehend
A42: Umrechnungskoeffizienten Gebäudestandard (UKGS)
B44: GS-Stufe | C44: 1 | D44: 2 | E44: 3 | F44: 4 | G44: 5
B45: UKGS | C45: 1 | D45: 1.111 | E45: 1.276 | F45: 1.539 | G45: 1.925
B46: Kontrolle | C46: =$C$48+$C$49*C44+$C$50*C44^2+$C$51*C44^3+$C$52*C44^4 -> 1 | D46: =$C$48+$C$49*D44+$C$50*D44^2+$C$51*D44^3+$C$52*D44^4 -> 1.11099996 | E46: =$C$48+$C$49*E44+$C$50*E44^2+$C$51*E44^3+$C$52*E44^4 -> 1.27599976 | F46: =$C$48+$C$49*F44+$C$50*F44^2+$C$51*F44^3+$C$52*F44^4 -> 1.5389992 | G46: =$C$48+$C$49*G44+$C$50*G44^2+$C$51*G44^3+$C$52*G44^4 -> 1.924998
A48: UKGS=a+b*GS+c*GS²+d*GS³+e*GS4 | B48: a= | C48: 0.88
B49: b= | C49: 0.15025
B50: c= | C50: -0.04470833
B51: d= | C51: 0.01525
B52: e= | C52: -0.00079167
C55: 3 | D55: =EingabeMaske!D21 -> 3
C58: =C48+C49*C55+C50*C55^2+C51*C55^3+C52*C55^4 -> 1.27599976 | D58: =C48+C49*C55+C50*C55^2+C51*C55^3+C52*C55^4 -> 1.27599976
A65: Alterswertminderung
A67: RW = a*RND(%)² + b*RND(%)
B70: a= | C70: -0.1977725722
B71: b= | C71: 1.197312161
A76: Umrechnungskoeffizienten Wohnfläche
E77: WF | F77: UKWF | G77: Kontrolle
A78: UKWF = a*ln(WF) + b | E78: 50 | F78: 1.280669653 | G78: =$C$80*LN(E78)+$C$81 -> 1.280669653
E79: 60 | F79: 1.232607652 | G79: =$C$80*LN(E79)+$C$81 -> 1.232607652
B80: a= | C80: -0.2636111791 | E80: 70 | F80: 1.19197181 | G80: 1.19197181
B81: b= | C81: 2.31192265 | E81: 80 | F81: 1.156771442 | G81: 1.156771442
E82: 90 | F82: 1.125722517 | G82: 1.125722517
E83: 100 | F83: 1.097948307 | G83: 1.097948307
E84: 110 | F84: 1.072823478 | G84: 1.072823478
E85: 120 | F85: 1.049886307 | G85: 1.049886307
E86: 130 | F86: 1.028786154 | G86: 1.028786154
E87: 140 | F87: 1.009250464 | G87: 1.009250464
E88: 145 | F88: 1 | G88: 1
E89: 150 | F89: 0.991063172 | G89: 0.9910631721
E90: 160 | F90: 0.9740500963 | G90: 0.9740500964
E91: 170 | F91: 0.9580687683 | G91: 0.9580687684
E92: 180 | F92: 0.9430011714 | G92: 0.9430011715
E93: 190 | F93: 0.9287484475 | G93: 0.9287484476
E94: 200 | F94: 0.9152269617 | G94: 0.9152269618
E95: 210 | F95: 0.902365329 | G95: 0.9023653291
E96: 220 | F96: 0.8901021328 | G96: 0.8901021329
E97: 230 | F97: 0.8783841512 | G97: 0.8783841513
E98: 240 | F98: 0.8671649611 | G98: 0.8671649612
E99: 250 | F99: 0.856403827 | G99: 0.8564038271
E100: 260 | F100: 0.8460648085 | G100: 0.8460648086
E101: 270 | F101: 0.8361160362 | G101: 0.8361160363
E102: 280 | F102: 0.8265291186 | G102: 0.8265291187
E103: 290 | F103: 0.8172786544 | G103: 0.8172786545
E104: 300 | F104: 0.8083418264 | G104: 0.8083418265
A108: Marktanpassung SMK
A110: kSMK=a*BW+b
B112: a= | C112: -0.0005166036 | E112: BW | F112: kSMK
B113: b= | C113: 1.008083556 | E113: 20 | F113: 1
E114: 50 | F114: 0.98
E115: 100 | F115: 0.96
E116: 150 | F116: 0.93
E117: 200 | F117: 0.9
E118: 250 | F118: 0.88
E119: 300 | F119: 0.85
E120: 350 | F120: 0.83
E121: 400 | F121: 0.8
E122: 450 | F122: 0.78
E123: 500 | F123: 0.75
E124: 550 | F124: 0.72
E125: 600 | F125: 0.7
A131: Berücksichtigung der Wertverhältnisse zwischen dem Richtwertstichtag und dem Wertermittlungsstichtag
B132: =EingabeMaske!D$16 -> 2020-01-01 | E132: Interpolation! | H132: Ergänzung
B133: =B132-DATE(YEAR(B132)-1,12,31.25) -> 1 | C133: 2023 | D133: =(G133-G134)*$B$141/365+G134 -> 177 | E133: 2022-01-01 | F133: 2022-12-31 | G133: 177 | H133: =ROUND(IF(YEAR($B$132)+1=C133,D133,0),2) -> 0
B134: =B132-DATE(YEAR(B132)-1,12,31.25) -> 1 | C134: 2022 | D134: 161.0438356 | E134: 2021-01-01 | F134: 2021-12-31 | G134: 177 | H134: =ROUND(IF(YEAR($B$132)+1=C134,D134,0),2) -> 0
B135: =B132-DATE(YEAR(B132)-1,12,31.25) -> 1 | C135: 2021 | D135: =(G135-G136)*$B$141/365+G136 -> 146.0410959 | E135: 2020-01-01 | F135: 2020-12-31 | G135: 161 | H135: 146.04
B136: =B132-DATE(YEAR(B132)-1,12,31.25) -> 1 | C136: 2020 | D136: 134.0328767 | E136: 2019-01-01 | F136: 2019-12-31 | G136: 146 | H136: 0
B137: =B132-DATE(YEAR(B132)-1,12,31.25) -> 1 | C137: 2019 | D137: =(G137-G138)*$B$141/365+G138 -> 125.0246575 | E137: 2018-01-01 | F137: 2018-12-31 | G137: 134 | H137: 0
B138: =B132-DATE(YEAR(B132)-1,12,31.25) -> 1 | C138: 2018 | D138: 118.0191781 | E138: 2017-01-01 | F138: 2017-12-31 | G138: 125 | H138: 0
B139: =B132-DATE(YEAR(B132)-1,12,31.25) -> 1 | C139: 2017 | D139: 112.0164384 | E139: 2016-01-01 | F139: 2016-12-31 | G139: 118 | H139: 0
B140: =B132-DATE(YEAR(B132)-1,12,31.25) -> 1 | C140: 2016 | D140: 109.0082192 | E140: 2015-01-01 | F140: 2015-12-31 | G140: 112 | H140: 0
B141: =B132-DATE(YEAR(B132)-1,12,31.25) -> 1 | C141: 2015 | D141: 108.0027397 | E141: 2014-01-01 | F141: 2014-12-31 | G141: 109 | H141: 0
B142: =B132-DATE(YEAR(B132)-1,12,31.25) -> 1 | C142: 2014 | D142: 106.0054795 | E142: 2013-01-01 | F142: 2013-12-31 | G142: 108 | H142: 0
B143: =B132-DATE(YEAR(B132)-1,12,31.25) -> 1 | C143: 2013 | D143: 104.0054795 | E143: 2012-01-01 | F143: 2012-12-31 | G143: 106 | H143: 0
B144: =B132-DATE(YEAR(B132)-1,12,31.25) -> 1 | C144: 2012 | D144: 101.0082192 | E144: 2011-01-01 | F144: 2011-12-31 | G144: 104 | H144: 0
B145: =B132-DATE(YEAR(B132)-1,12,31.25) -> 1 | C145: 2011 | D145: 100.0027397 | E145: 2010-01-01 | F145: 2010-12-31 | G145: 101 | H145: 0
B146: =B132-DATE(YEAR(B132)-1,12,31.25) -> 1 | C146: 2010 | D146: 99.00273973 | E146: 2009-01-01 | F146: 2009-12-31 | G146: 100 | H146: 0
B147: =B132-DATE(YEAR(B132)-1,12,31.25) -> 1 | C147: 2009 | D147: 98.00273973 | E147: 2008-01-01 | F147: 2008-12-31 | G147: 99 | H147: 0
B148: =B132-DATE(YEAR(B132)-1,12,31.25) -> 1 | C148: 2008 | D148: 95.00821918 | E148: 2007-01-01 | F148: 2007-12-31 | G148: 98 | H148: 0
B149: =B132-DATE(YEAR(B132)-1,12,31.25) -> 1 | C149: 2007 | D149: 92.00821918 | E149: 2006-01-01 | F149: 2006-12-31 | G149: 95 | H149: 0
B150: =B132-DATE(YEAR(B132)-1,12,31.25) -> 1 | C150: 2006 | E150: 2005-01-01 | F150: 2005-12-31 | G150: 92 | H150: 0
H151: =SUM(H133:H150) -> 146.04
B154: Bei Indexfortschreibung muss in folgenden Feldern der anderen Tabellenblätter eine Anpassung erfolgen:
B155: EingabeMaske, Kommentare in E9 und E10 sowie Formel in Feld A 10
B156: Berechnung und Ergebnis, Formeln in Feld C75 und Feld D 75
A159: Marktsegment 1
B160: =EingabeMaske!D$16 -> 2020-01-01 | E160: Interpolation! | H160: Ergänzung
B161: =B160-DATE(YEAR(B160)-1,12,31.25) -> 1 | C161: 2023 | D161: =(G161-G162)*$B$141/365+G162 -> 164 | E161: 2022-01-01 | F161: 2022-12-31 | G161: 164 | H161: =ROUND(IF(YEAR($B$132)+1=C161,D161,0),2) -> 0
B162: =B160-DATE(YEAR(B160)-1,12,31.25) -> 1 | C162: 2022 | D162: 151.0356164 | E162: 2021-01-01 | F162: 2021-12-31 | G162: 164 | H162: =ROUND(IF(YEAR($B$132)+1=C162,D162,0),2) -> 0
B163: =B160-DATE(YEAR(B160)-1,12,31.25) -> 1 | C163: 2021 | D163: =(G163-G164)*$B$141/365+G164 -> 138.0356164 | E163: 2020-01-01 | F163: 2020-12-31 | G163: 151 | H163: =ROUND(IF(YEAR($B$132)+1=C163,D163,0),2) -> 138.04
B164: =B160-DATE(YEAR(B160)-1,12,31.25) -> 1 | C164: 2020 | D164: =(G164-G165)*$B$141/365+G165 -> 125.0356164 | E164: 2019-01-01 | F164: 2019-12-31 | G164: 138 | H164: 0
B165: =B160-DATE(YEAR(B160)-1,12,31.25) -> 1 | C165: 2019 | D165: =(G165-G166)*$B$141/365+G166 -> 116.0246575 | E165: 2018-01-01 | F165: 2018-12-31 | G165: 125 | H165: 0
B166: =B160-DATE(YEAR(B160)-1,12,31.25) -> 1 | C166: 2018 | D166: =(G166-G167)*$B$141/365+G167 -> 109.0191781 | E166: 2017-01-01 | F166: 2017-12-31 | G166: 116 | H166: 0
B167: =B160-DATE(YEAR(B160)-1,12,31.25) -> 1 | C167: 2017 | D167: 105.0109589 | E167: 2016-01-01 | F167: 2016-12-31 | G167: 109 | H167: 0
B168: =B160-DATE(YEAR(B160)-1,12,31.25) -> 1 | C168: 2016 | D168: 101.0109589 | E168: 2015-01-01 | F168: 2015-12-31 | G168: 105 | H168: 0
B169: =B160-DATE(YEAR(B160)-1,12,31.25) -> 1 | C169: 2015 | D169: 100.0027397 | E169: 2014-01-01 | F169: 2014-12-31 | G169: 101 | H169: 0
B170: =B160-DATE(YEAR(B160)-1,12,31.25) -> 1 | C170: 2014 | D170: 100 | E170: 2013-01-01 | F170: 2013-12-31 | G170: 100 | H170: 0
B171: =B160-DATE(YEAR(B160)-1,12,31.25) -> 1 | C171: 2013 | D171: 100 | E171: 2012-01-01 | F171: 2012-12-31 | G171: 100 | H171: 0
B172: =B160-DATE(YEAR(B160)-1,12,31.25) -> 1 | C172: 2012 | D172: 99.00273973 | E172: 2011-01-01 | F172: 2011-12-31 | G172: 100 | H172: 0
B173: =B160-DATE(YEAR(B160)-1,12,31.25) -> 1 | C173: 2011 | D173: 99.99726027 | E173: 2010-01-01 | F173: 2010-12-31 | G173: 99 | H173: 0
B174: =B160-DATE(YEAR(B160)-1,12,31.25) -> 1 | C174: 2010 | D174: 99.00273973 | E174: 2009-01-01 | F174: 2009-12-31 | G174: 100 | H174: 0
B175: =B160-DATE(YEAR(B160)-1,12,31.25) -> 1 | C175: 2009 | D175: 98.00273973 | E175: 2008-01-01 | F175: 2008-12-31 | G175: 99 | H175: 0
B176: =B160-DATE(YEAR(B160)-1,12,31.25) -> 1 | C176: 2008 | D176: 95.00821918 | E176: 2007-01-01 | F176: 2007-12-31 | G176: 98 | H176: 0
B177: =B160-DATE(YEAR(B160)-1,12,31.25) -> 1 | C177: 2007 | D177: 92.00821918 | E177: 2006-01-01 | F177: 2006-12-31 | G177: 95 | H177: 0
B178: =B160-DATE(YEAR(B160)-1,12,31.25) -> 1 | C178: 2006 | E178: 2005-01-01 | F178: 2005-12-31 | G178: 92 | H178: 0
H179: =SUM(H161:H178) -> 138.04 | I179: =IF(EingabeMaske!M$14=1,H179,0) -> 0 | J179: =IF(EingabeMaske!M$14=1,G164,0) -> 0
I180: =B160 -> 2020-01-01 | J180: 2020-01-01
A182: Marktsegment 2
B183: =EingabeMaske!D$16 -> 2020-01-01 | E183: Interpolation! | H183: Ergänzung
B184: =B183-DATE(YEAR(B183)-1,12,31.25) -> 1 | C184: 2023 | D184: =(G184-G185)*$B$141/365+G185 -> 169 | E184: 2022-01-01 | F184: 2022-12-31 | G184: 169 | H184: =ROUND(IF(YEAR($B$132)+1=C184,D184,0),2) -> 0
B185: =B183-DATE(YEAR(B183)-1,12,31.25) -> 1 | C185: 2022 | D185: 156.0356164 | E185: 2021-01-01 | F185: 2021-12-31 | G185: 169 | H185: =ROUND(IF(YEAR($B$132)+1=C185,D185,0),2) -> 0
B186: =B183-DATE(YEAR(B183)-1,12,31.25) -> 1 | C186: 2021 | D186: =(G186-G187)*$B$141/365+G187 -> 143.0356164 | E186: 2020-01-01 | F186: 2020-12-31 | G186: 156 | H186: =ROUND(IF(YEAR($B$132)+1=C186,D186,0),2) -> 143.04
B187: =B183-DATE(YEAR(B183)-1,12,31.25) -> 1 | C187: 2020 | D187: =(G187-G188)*$B$141/365+G188 -> 132.030137 | E187: 2019-01-01 | F187: 2019-12-31 | G187: 143 | H187: 0
B188: =B183-DATE(YEAR(B183)-1,12,31.25) -> 1 | C188: 2019 | D188: =(G188-G189)*$B$141/365+G189 -> 123.0246575 | E188: 2018-01-01 | F188: 2018-12-31 | G188: 132 | H188: 0
B189: =B183-DATE(YEAR(B183)-1,12,31.25) -> 1 | C189: 2018 | D189: =(G189-G190)*$B$141/365+G190 -> 117.0164384 | E189: 2017-01-01 | F189: 2017-12-31 | G189: 123 | H189: 0
B190: =B183-DATE(YEAR(B183)-1,12,31.25) -> 1 | C190: 2017 | D190: 112.0136986 | E190: 2016-01-01 | F190: 2016-12-31 | G190: 117 | H190: 0
B191: =B183-DATE(YEAR(B183)-1,12,31.25) -> 1 | C191: 2016 | D191: 108.0109589 | E191: 2015-01-01 | F191: 2015-12-31 | G191: 112 | H191: 0
B192: =B183-DATE(YEAR(B183)-1,12,31.25) -> 1 | C192: 2015 | D192: 105.0082192 | E192: 2014-01-01 | F192: 2014-12-31 | G192: 108 | H192: 0
B193: =B183-DATE(YEAR(B183)-1,12,31.25) -> 1 | C193: 2014 | D193: 104.0027397 | E193: 2013-01-01 | F193: 2013-12-31 | G193: 105 | H193: 0
B194: =B183-DATE(YEAR(B183)-1,12,31.25) -> 1 | C194: 2013 | D194: 103.0027397 | E194: 2012-01-01 | F194: 2012-12-31 | G194: 104 | H194: 0
B195: =B183-DATE(YEAR(B183)-1,12,31.25) -> 1 | C195: 2012 | D195: 101.0054795 | E195: 2011-01-01 | F195: 2011-12-31 | G195: 103 | H195: 0
B196: =B183-DATE(YEAR(B183)-1,12,31.25) -> 1 | C196: 2011 | D196: 100.0027397 | E196: 2010-01-01 | F196: 2010-12-31 | G196: 101 | H196: 0
B197: =B183-DATE(YEAR(B183)-1,12,31.25) -> 1 | C197: 2010 | D197: 99.00273973 | E197: 2009-01-01 | F197: 2009-12-31 | G197: 100 | H197: 0
B198: =B183-DATE(YEAR(B183)-1,12,31.25) -> 1 | C198: 2009 | D198: 98.00273973 | E198: 2008-01-01 | F198: 2008-12-31 | G198: 99 | H198: 0
B199: =B183-DATE(YEAR(B183)-1,12,31.25) -> 1 | C199: 2008 | D199: 95.00821918 | E199: 2007-01-01 | F199: 2007-12-31 | G199: 98 | H199: 0
B200: =B183-DATE(YEAR(B183)-1,12,31.25) -> 1 | C200: 2007 | D200: 92.00821918 | E200: 2006-01-01 | F200: 2006-12-31 | G200: 95 | H200: 0
B201: =B183-DATE(YEAR(B183)-1,12,31.25) -> 1 | C201: 2006 | E201: 2005-01-01 | F201: 2005-12-31 | G201: 92 | H201: 0
H202: =SUM(H184:H201) -> 143.04 | I202: =IF(EingabeMaske!M$14=2,H202,0) -> 0 | J202: =IF(EingabeMaske!M$14=2,G187,0) -> 0
I203: =B183 -> 2020-01-01 | J203: 2020-01-01
A205: Marktsegment 3
B206: =EingabeMaske!D$16 -> 2020-01-01 | E206: Interpolation! | H206: Ergänzung
B207: =B206-DATE(YEAR(B206)-1,12,31.25) -> 1 | C207: 2023 | D207: =(G207-G208)*$B$141/365+G208 -> 189 | E207: 2022-01-01 | F207: 2022-12-31 | G207: 189 | H207: =ROUND(IF(YEAR($B$132)+1=C207,D207,0),2) -> 0
B208: =B206-DATE(YEAR(B206)-1,12,31.25) -> 1 | C208: 2022 | D208: 172.0465753 | E208: 2021-01-01 | F208: 2021-12-31 | G208: 189 | H208: =ROUND(IF(YEAR($B$132)+1=C208,D208,0),2) -> 0
B209: =B206-DATE(YEAR(B206)-1,12,31.25) -> 1 | C209: 2021 | D209: =(G209-G210)*$B$141/365+G210 -> 155.0465753 | E209: 2020-01-01 | F209: 2020-12-31 | G209: 172 | H209: =ROUND(IF(YEAR($B$132)+1=C209,D209,0),2) -> 155.05
B210: =B206-DATE(YEAR(B206)-1,12,31.25) -> 1 | C210: 2020 | D210: =(G210-G211)*$B$141/365+G211 -> 141.0383562 | E210: 2019-01-01 | F210: 2019-12-31 | G210: 155 | H210: 0
B211: =B206-DATE(YEAR(B206)-1,12,31.25) -> 1 | C211: 2019 | D211: =(G211-G212)*$B$141/365+G212 -> 130.030137 | E211: 2018-01-01 | F211: 2018-12-31 | G211: 141 | H211: 0
B212: =B206-DATE(YEAR(B206)-1,12,31.25) -> 1 | C212: 2018 | D212: =(G212-G213)*$B$141/365+G213 -> 121.0246575 | E212: 2017-01-01 | F212: 2017-12-31 | G212: 130 | H212: 0
B213: =B206-DATE(YEAR(B206)-1,12,31.25) -> 1 | C213: 2017 | D213: 114.0191781 | E213: 2016-01-01 | F213: 2016-12-31 | G213: 121 | H213: 0
B214: =B206-DATE(YEAR(B206)-1,12,31.25) -> 1 | C214: 2016 | D214: 111.0082192 | E214: 2015-01-01 | F214: 2015-12-31 | G214: 114 | H214: 0
B215: =B206-DATE(YEAR(B206)-1,12,31.25) -> 1 | C215: 2015 | D215: 109.0054795 | E215: 2014-01-01 | F215: 2014-12-31 | G215: 111 | H215: 0
B216: =B206-DATE(YEAR(B206)-1,12,31.25) -> 1 | C216: 2014 | D216: 107.0054795 | E216: 2013-01-01 | F216: 2013-12-31 | G216: 109 | H216: 0
B217: =B206-DATE(YEAR(B206)-1,12,31.25) -> 1 | C217: 2013 | D217: 104.0082192 | E217: 2012-01-01 | F217: 2012-12-31 | G217: 107 | H217: 0
B218: =B206-DATE(YEAR(B206)-1,12,31.25) -> 1 | C218: 2012 | D218: 102.0054795 | E218: 2011-01-01 | F218: 2011-12-31 | G218: 104 | H218: 0
B219: =B206-DATE(YEAR(B206)-1,12,31.25) -> 1 | C219: 2011 | D219: 100.0054795 | E219: 2010-01-01 | F219: 2010-12-31 | G219: 102 | H219: 0
B220: =B206-DATE(YEAR(B206)-1,12,31.25) -> 1 | C220: 2010 | D220: 99.00273973 | E220: 2009-01-01 | F220: 2009-12-31 | G220: 100 | H220: 0
B221: =B206-DATE(YEAR(B206)-1,12,31.25) -> 1 | C221: 2009 | D221: 98.00273973 | E221: 2008-01-01 | F221: 2008-12-31 | G221: 99 | H221: 0
B222: =B206-DATE(YEAR(B206)-1,12,31.25) -> 1 | C222: 2008 | D222: 95.00821918 | E222: 2007-01-01 | F222: 2007-12-31 | G222: 98 | H222: 0
B223: =B206-DATE(YEAR(B206)-1,12,31.25) -> 1 | C223: 2007 | D223: 92.00821918 | E223: 2006-01-01 | F223: 2006-12-31 | G223: 95 | H223: 0
B224: =B206-DATE(YEAR(B206)-1,12,31.25) -> 1 | C224: 2006 | E224: 2005-01-01 | F224: 2005-12-31 | G224: 92 | H224: 0
H225: =SUM(H207:H224) -> 155.05 | I225: =IF(EingabeMaske!M$14=3,H225,0) -> 0 | J225: =IF(EingabeMaske!M$14=3,G210,0) -> 0
I226: =B206 -> 2020-01-01 | J226: 2020-01-01
A228: Marktsegment 4
B229: =EingabeMaske!D$16 -> 2020-01-01 | E229: Interpolation! | H229: Ergänzung
B230: =B229-DATE(YEAR(B229)-1,12,31.25) -> 1 | C230: 2023 | D230: =(G230-G231)*$B$141/365+G231 -> 211 | E230: 2022-01-01 | F230: 2022-12-31 | G230: 211 | H230: =ROUND(IF(YEAR($B$132)+1=C230,D230,0),2) -> 0
B231: =B229-DATE(YEAR(B229)-1,12,31.25) -> 1 | C231: 2022 | D231: 189.060274 | E231: 2021-01-01 | F231: 2021-12-31 | G231: 211 | H231: =ROUND(IF(YEAR($B$132)+1=C231,D231,0),2) -> 0
B232: =B229-DATE(YEAR(B229)-1,12,31.25) -> 1 | C232: 2021 | D232: =(G232-G233)*$B$141/365+G233 -> 170.0520548 | E232: 2020-01-01 | F232: 2020-12-31 | G232: 189 | H232: =ROUND(IF(YEAR($B$132)+1=C232,D232,0),2) -> 170.05
B233: =B229-DATE(YEAR(B229)-1,12,31.25) -> 1 | C233: 2020 | D233: =(G233-G234)*$B$141/365+G234 -> 155.0410959 | E233: 2019-01-01 | F233: 2019-12-31 | G233: 170 | H233: 0
B234: =B229-DATE(YEAR(B229)-1,12,31.25) -> 1 | C234: 2019 | D234: =(G234-G235)*$B$141/365+G235 -> 142.0356164 | E234: 2018-01-01 | F234: 2018-12-31 | G234: 155 | H234: 0
B235: =B229-DATE(YEAR(B229)-1,12,31.25) -> 1 | C235: 2018 | D235: =(G235-G236)*$B$141/365+G236 -> 130.0328767 | E235: 2017-01-01 | F235: 2017-12-31 | G235: 142 | H235: 0
B236: =B229-DATE(YEAR(B229)-1,12,31.25) -> 1 | C236: 2017 | D236: 121.0246575 | E236: 2016-01-01 | F236: 2016-12-31 | G236: 130 | H236: 0
B237: =B229-DATE(YEAR(B229)-1,12,31.25) -> 1 | C237: 2016 | D237: 114.0191781 | E237: 2015-01-01 | F237: 2015-12-31 | G237: 121 | H237: 0
B238: =B229-DATE(YEAR(B229)-1,12,31.25) -> 1 | C238: 2015 | D238: 110.0109589 | E238: 2014-01-01 | F238: 2014-12-31 | G238: 114 | H238: 0
B239: =B229-DATE(YEAR(B229)-1,12,31.25) -> 1 | C239: 2014 | D239: 106.0109589 | E239: 2013-01-01 | F239: 2013-12-31 | G239: 110 | H239: 0
B240: =B229-DATE(YEAR(B229)-1,12,31.25) -> 1 | C240: 2013 | D240: 105.0027397 | E240: 2012-01-01 | F240: 2012-12-31 | G240: 106 | H240: 0
B241: =B229-DATE(YEAR(B229)-1,12,31.25) -> 1 | C241: 2012 | D241: 102.0082192 | E241: 2011-01-01 | F241: 2011-12-31 | G241: 105 | H241: 0
B242: =B229-DATE(YEAR(B229)-1,12,31.25) -> 1 | C242: 2011 | D242: 100.0054795 | E242: 2010-01-01 | F242: 2010-12-31 | G242: 102 | H242: 0
B243: =B229-DATE(YEAR(B229)-1,12,31.25) -> 1 | C243: 2010 | D243: 99.00273973 | E243: 2009-01-01 | F243: 2009-12-31 | G243: 100 | H243: 0
B244: =B229-DATE(YEAR(B229)-1,12,31.25) -> 1 | C244: 2009 | D244: 98.00273973 | E244: 2008-01-01 | F244: 2008-12-31 | G244: 99 | H244: 0
B245: =B229-DATE(YEAR(B229)-1,12,31.25) -> 1 | C245: 2008 | D245: 95.00821918 | E245: 2007-01-01 | F245: 2007-12-31 | G245: 98 | H245: 0
... 49 more rows

Sheet Vergleichsfaktoren 2021 (2) (hidden)
B1: Vergleichsfaktoren (VF) für mit freistehenden Einfamilienwohnhäusern bebaute Grundstücke
D2: Stichtag | E2: 2020-01-01
B3: Modell s. LGMB 2021, Kap. 3.6.1.1 - © Oberer Gutachterausschuss für Grundstückswerte Rheinland-Pfalz
B4: Kurzbeschreibung des Richtwertgrundstücks: Größe 500 m², mittlerer Standard, freistehend KG+EG+ausgeb. DG, Wohnfäche 145 m², Alter 15 Jahre
B5: Hinweis: Sollte eine Gemarkung nicht nachgewiesen sein, kann eine vergleichbare Gemarkung desselben Marktsegments herangezogen werden.
A6: Ergänzung LfSt
A7: Gemeinde / Gemarkung / Landkreis bzw. Stadt | B7: Nr. | C7: Gemarkung | D7: Gemeinde | E7: Landkreis/kreisfreie Stadt | F7: Markt-segment Nr. | G7: BWN €/m² Grdst.fl. | H7: RW €/m² Wohnfl. | I7: SWF
A8: =TRIM(D8)&" / "&TRIM(C8)&" / "&TRIM(E8) -> 0 / 0 / 0 | B8: 0 | C8: 0 | D8: 0 | E8: 0 | F8: 0 | G8: 0 | I8: 0
A9: =TRIM(D9)&" / "&TRIM(C9)&" / "&TRIM(E9) -> / /
A10: / /
A11: / /
A12: / /
A13: / /
A14: / /
A15: / /
A16: / /
A17: / /
A18: / /
A19: / /
A20: / /
A21: / /
A22: / /
A23: / /
A24: / /
A25: / /
A26: / /
A27: / /
A28: / /
A29: / /
A30: / /
A31: / /
A32: / /
A33: / /
A34: / /
A35: / /
A36: / /
A37: / /
A38: / /
A39: / /
A40: / /
A41: / /
A42: / /
A43: / /
A44: / /
A45: / /
A46: / /
A47: / /
A48: / /
A49: / /
A50: / /
A51: / /
A52: / /
A53: / /
A54: / /
A55: / /
A56: / /
A57: / /
A58: / /
A59: / /
A60: / /
A61: / /
A62: / /
A63: / /
A64: / /
A65: / /
A66: / /
A67: / /
A68: / /
A69: / /
A70: / /
A71: / /
A72: / /
A73: =TRIM(D73)&" / "&TRIM(C73)&" / "&TRIM(E73) -> / /
A74: / /
A75: / /
A76: / /
A77: / /
A78: / /
A79: / /
A80: / /
A81: / /
A82: / /
A83: / /
A84: / /
A85: / /
A86: / /
A87: / /
A88: / /
A89: / /
A90: / /
A91: / /
A92: / /
A93: / /
A94: / /
A95: / /
A96: / /
A97: / /
A98: / /
A99: / /
A100: / /
A101: / /
A102: / /
A103: / /
A104: / /
A105: / /
A106: / /
A107: / /
A108: / /
A109: / /
A110: / /
A111: / /
A112: / /
A113: / /
A114: / /
A115: / /
A116: / /
A117: / /
A118: / /
A119: / /
A120: / /
A121: / /
A122: / /
A123: / /
A124: / /
A125: / /
A126: / /
A127: / /
A128: / /
A129: / /
A130: / /
A131: / /
A132: / /
A133: / /
A134: / /
A135: / /
A136: / /
A137: =TRIM(D137)&" / "&TRIM(C137)&" / "&TRIM(E137) -> / /
A138: / /
A139: / /
A140: / /
A141: / /
A142: / /
A143: / /
A144: / /
A145: / /
A146: / /
A147: / /
A148: / /
A149: / /
A150: / /
A151: / /
A152: / /
A153: / /
A154: / /
A155: / /
A156: / /
A157: / /
A158: / /
A159: / /
A160: / /
A161: / /
A162: / /
A163: / /
A164: / /
A165: / /
A166: / /
A167: / /
A168: / /
A169: / /
A170: / /
A171: / /
A172: / /
A173: / /
A174: / /
A175: / /
A176: / /
A177: / /
A178: / /
A179: / /
A180: / /
A181: / /
A182: / /
A183: / /
A184: / /
A185: / /
A186: / /
A187: / /
A188: / /
A189: / /
A190: / /
A191: / /
A192: / /
A193: / /
A194: / /
A195: / /
A196: / /
A197: / /
A198: / /
A199: / /
A200: / /
... 2823 more rows

Sheet Vergleichsdaten 2023 (hidden)
A1: =EingabeMaske!A36 -> Quelle: Oberer Gutachterausschuss für Grundstückswerte Rheinland-Pfalz gem. Landesgrundstückmarkbericht 2021 | E1: =EingabeMaske!D1 -> EFH-Rechner, Version 1 - 2023
A5: Berücksichtigung der Wertverhältnisse zwischen dem Richtwertstichtag und dem Wertermittlungsstichtag
B6: =EingabeMaske!D$16 -> 2020-01-01 | E6: Interpolation! | H6: Ergänzung
B7: =B$6-DATE(YEAR(B$6)-1,12,31.25) -> 1 | C7: 2025 | D7: 180.0328767 | E7: 2024-01-01 | F7: 2024-12-31 | G7: 192 | H7: =ROUND(IF(YEAR($B$6)+1=C7,D7,0),2) -> 0
B8: =B$6-DATE(YEAR(B$6)-1,12,31.25) -> 1 | C8: 2024 | D8: 192 | E8: 2023-01-01 | F8: 2023-12-31 | G8: 192 | H8: 0
B9: 1 | C9: 2023 | D9: 180.0328767 | E9: 2022-01-01 | F9: 2022-12-31 | G9: 192 | H9: 0
B10: =B6-DATE(YEAR(B6)-1,12,31.25) -> 1 | C10: 2022 | D10: 163.0465753 | E10: 2021-01-01 | F10: 2021-12-31 | G10: 180 | H10: =ROUND(IF(YEAR($B$6)+1=C10,D10,0),2) -> 0
B11: =B6-DATE(YEAR(B6)-1,12,31.25) -> 1 | C11: 2021 | D11: 147.0438356 | E11: 2020-01-01 | F11: 2020-12-31 | G11: 163 | H11: 147.04
B12: =B6-DATE(YEAR(B6)-1,12,31.25) -> 1 | C12: 2020 | D12: 134.0356164 | E12: 2019-01-01 | F12: 2019-12-31 | G12: 147 | H12: 0
B13: =B6-DATE(YEAR(B6)-1,12,31.25) -> 1 | C13: 2019 | D13: 125.0246575 | E13: 2018-01-01 | F13: 2018-12-31 | G13: 134 | H13: 0
B14: =B6-DATE(YEAR(B6)-1,12,31.25) -> 1 | C14: 2018 | D14: 118.0191781 | E14: 2017-01-01 | F14: 2017-12-31 | G14: 125 | H14: 0
B15: =B6-DATE(YEAR(B6)-1,12,31.25) -> 1 | C15: 2017 | D15: 112.0164384 | E15: 2016-01-01 | F15: 2016-12-31 | G15: 118 | H15: 0
B16: =B6-DATE(YEAR(B6)-1,12,31.25) -> 1 | C16: 2016 | D16: 109.0082192 | E16: 2015-01-01 | F16: 2015-12-31 | G16: 112 | H16: 0
B17: =B6-DATE(YEAR(B6)-1,12,31.25) -> 1 | C17: 2015 | D17: 108.0027397 | E17: 2014-01-01 | F17: 2014-12-31 | G17: 109 | H17: 0
B18: =B6-DATE(YEAR(B6)-1,12,31.25) -> 1 | C18: 2014 | D18: 106.0054795 | E18: 2013-01-01 | F18: 2013-12-31 | G18: 108 | H18: 0
B19: =B6-DATE(YEAR(B6)-1,12,31.25) -> 1 | C19: 2013 | D19: 104.0054795 | E19: 2012-01-01 | F19: 2012-12-31 | G19: 106 | H19: 0
B20: =B6-DATE(YEAR(B6)-1,12,31.25) -> 1 | C20: 2012 | D20: 101.0082192 | E20: 2011-01-01 | F20: 2011-12-31 | G20: 104 | H20: 0
B21: =B6-DATE(YEAR(B6)-1,12,31.25) -> 1 | C21: 2011 | D21: 100.0027397 | E21: 2010-01-01 | F21: 2010-12-31 | G21: 101 | H21: 0
B22: =B6-DATE(YEAR(B6)-1,12,31.25) -> 1 | C22: 2010 | D22: 99.00273973 | E22: 2009-01-01 | F22: 2009-12-31 | G22: 100 | H22: 0
B23: =B6-DATE(YEAR(B6)-1,12,31.25) -> 1 | C23: 2009 | D23: 98.00273973 | E23: 2008-01-01 | F23: 2008-12-31 | G23: 99 | H23: 0
B24: =B6-DATE(YEAR(B6)-1,12,31.25) -> 1 | C24: 2008 | D24: 95.00821918 | E24: 2007-01-01 | F24: 2007-12-31 | G24: 98 | H24: 0
B25: =B6-DATE(YEAR(B6)-1,12,31.25) -> 1 | C25: 2007 | D25: 92.00821918 | E25: 2006-01-01 | F25: 2006-12-31 | G25: 95 | H25: 0
B26: =B6-DATE(YEAR(B6)-1,12,31.25) -> 1 | C26: 2006 | E26: 2005-01-01 | F26: 2005-12-31 | G26: 92 | H26: 0
H27: =SUM(H7:H26) -> 147.04
B30: Bei Indexfortschreibung muss in folgenden Feldern der anderen Tabellenblätter eine Anpassung erfolgen:
B31: EingabeMaske, Kommentare in E9 und E10 sowie Formel in Feld A 10
B32: Berechnung und Ergebnis, Formeln in Feld C75 und Feld D 75
A35: Marktsegment 1
B36: =EingabeMaske!D$16 -> 2020-01-01 | E36: Interpolation! | H36: Ergänzung
B37: =B$36-DATE(YEAR(B$36)-1,12,31.25) -> 1 | C37: 2025 | D37: 173.0465753 | E37: 2024-01-01 | F37: 2024-12-31 | G37: 190 | H37: =ROUND(IF(YEAR($B$6)+1=C37,D37,0),2) -> 0
B38: =B$36-DATE(YEAR(B$36)-1,12,31.25) -> 1 | C38: 2024 | D38: 190 | E38: 2023-01-01 | F38: 2023-12-31 | G38: 190 | H38: 0
B39: 1 | C39: 2023 | D39: 173.0465753 | E39: 2022-01-01 | F39: 2022-12-31 | G39: 190 | H39: 0
B40: =B36-DATE(YEAR(B36)-1,12,31.25) -> 1 | C40: 2022 | D40: 156.0465753 | E40: 2021-01-01 | F40: 2021-12-31 | G40: 173 | H40: =ROUND(IF(YEAR($B$6)+1=C40,D40,0),2) -> 0
B41: =B36-DATE(YEAR(B36)-1,12,31.25) -> 1 | C41: 2021 | D41: 138.0493151 | E41: 2020-01-01 | F41: 2020-12-31 | G41: 156 | H41: =ROUND(IF(YEAR($B$6)+1=C41,D41,0),2) -> 138.05
B42: =B36-DATE(YEAR(B36)-1,12,31.25) -> 1 | C42: 2020 | D42: 125.0356164 | E42: 2019-01-01 | F42: 2019-12-31 | G42: 138 | H42: 0
B43: =B36-DATE(YEAR(B36)-1,12,31.25) -> 1 | C43: 2019 | D43: 116.0246575 | E43: 2018-01-01 | F43: 2018-12-31 | G43: 125 | H43: 0
B44: =B36-DATE(YEAR(B36)-1,12,31.25) -> 1 | C44: 2018 | D44: 109.0191781 | E44: 2017-01-01 | F44: 2017-12-31 | G44: 116 | H44: 0
B45: =B36-DATE(YEAR(B36)-1,12,31.25) -> 1 | C45: 2017 | D45: 105.0109589 | E45: 2016-01-01 | F45: 2016-12-31 | G45: 109 | H45: 0
B46: =B36-DATE(YEAR(B36)-1,12,31.25) -> 1 | C46: 2016 | D46: 101.0109589 | E46: 2015-01-01 | F46: 2015-12-31 | G46: 105 | H46: 0
B47: =B36-DATE(YEAR(B36)-1,12,31.25) -> 1 | C47: 2015 | D47: 100.0027397 | E47: 2014-01-01 | F47: 2014-12-31 | G47: 101 | H47: 0
B48: =B36-DATE(YEAR(B36)-1,12,31.25) -> 1 | C48: 2014 | D48: 100 | E48: 2013-01-01 | F48: 2013-12-31 | G48: 100 | H48: 0
B49: =B36-DATE(YEAR(B36)-1,12,31.25) -> 1 | C49: 2013 | D49: 100 | E49: 2012-01-01 | F49: 2012-12-31 | G49: 100 | H49: 0
B50: =B36-DATE(YEAR(B36)-1,12,31.25) -> 1 | C50: 2012 | D50: 99.00273973 | E50: 2011-01-01 | F50: 2011-12-31 | G50: 100 | H50: 0
B51: =B36-DATE(YEAR(B36)-1,12,31.25) -> 1 | C51: 2011 | D51: 99.99726027 | E51: 2010-01-01 | F51: 2010-12-31 | G51: 99 | H51: 0
B52: =B36-DATE(YEAR(B36)-1,12,31.25) -> 1 | C52: 2010 | D52: 99.00273973 | E52: 2009-01-01 | F52: 2009-12-31 | G52: 100 | H52: 0
B53: =B36-DATE(YEAR(B36)-1,12,31.25) -> 1 | C53: 2009 | D53: 98.00273973 | E53: 2008-01-01 | F53: 2008-12-31 | G53: 99 | H53: 0
B54: =B36-DATE(YEAR(B36)-1,12,31.25) -> 1 | C54: 2008 | D54: 95.00821918 | E54: 2007-01-01 | F54: 2007-12-31 | G54: 98 | H54: 0
B55: =B36-DATE(YEAR(B36)-1,12,31.25) -> 1 | C55: 2007 | D55: 92.00821918 | E55: 2006-01-01 | F55: 2006-12-31 | G55: 95 | H55: 0
B56: =B36-DATE(YEAR(B36)-1,12,31.25) -> 1 | C56: 2006 | E56: 2005-01-01 | F56: 2005-12-31 | G56: 92 | H56: 0
H57: =SUM(H37:H56) -> 138.05 | I57: =IF(EingabeMaske!M$14=1,H57,0) -> 0 | J57: =IF(EingabeMaske!N$14=1,G42,0) -> 0
I58: =B36 -> 2020-01-01 | J58: 2020-01-01
A60: Marktsegment 2
B61: =EingabeMaske!D$16 -> 2020-01-01 | E61: Interpolation! | H61: Ergänzung
B62: =B$61-DATE(YEAR(B$61)-1,12,31.25) -> 1 | C62: 2025 | D62: 175.0383562 | E62: 2024-01-01 | F62: 2024-12-31 | G62: 189 | H62: =ROUND(IF(YEAR($B$6)+1=C62,D62,0),2) -> 0
B63: =B$61-DATE(YEAR(B$61)-1,12,31.25) -> 1 | C63: 2024 | D63: 189 | E63: 2023-01-01 | F63: 2023-12-31 | G63: 189 | H63: 0
B64: 1 | C64: 2023 | D64: 175.0383562 | E64: 2022-01-01 | F64: 2022-12-31 | G64: 189 | H64: 0
B65: =B61-DATE(YEAR(B61)-1,12,31.25) -> 1 | C65: 2022 | D65: 159.0438356 | E65: 2021-01-01 | F65: 2021-12-31 | G65: 175 | H65: =ROUND(IF(YEAR($B$6)+1=C65,D65,0),2) -> 0
B66: =B61-DATE(YEAR(B61)-1,12,31.25) -> 1 | C66: 2021 | D66: 143.0438356 | E66: 2020-01-01 | F66: 2020-12-31 | G66: 159 | H66: =ROUND(IF(YEAR($B$6)+1=C66,D66,0),2) -> 143.04
B67: =B61-DATE(YEAR(B61)-1,12,31.25) -> 1 | C67: 2020 | D67: 132.030137 | E67: 2019-01-01 | F67: 2019-12-31 | G67: 143 | H67: 0
B68: =B61-DATE(YEAR(B61)-1,12,31.25) -> 1 | C68: 2019 | D68: 123.0246575 | E68: 2018-01-01 | F68: 2018-12-31 | G68: 132 | H68: 0
B69: =B61-DATE(YEAR(B61)-1,12,31.25) -> 1 | C69: 2018 | D69: 117.0164384 | E69: 2017-01-01 | F69: 2017-12-31 | G69: 123 | H69: 0
B70: =B61-DATE(YEAR(B61)-1,12,31.25) -> 1 | C70: 2017 | D70: 112.0136986 | E70: 2016-01-01 | F70: 2016-12-31 | G70: 117 | H70: 0
B71: =B61-DATE(YEAR(B61)-1,12,31.25) -> 1 | C71: 2016 | D71: 108.0109589 | E71: 2015-01-01 | F71: 2015-12-31 | G71: 112 | H71: 0
B72: =B61-DATE(YEAR(B61)-1,12,31.25) -> 1 | C72: 2015 | D72: 105.0082192 | E72: 2014-01-01 | F72: 2014-12-31 | G72: 108 | H72: 0
B73: =B61-DATE(YEAR(B61)-1,12,31.25) -> 1 | C73: 2014 | D73: 104.0027397 | E73: 2013-01-01 | F73: 2013-12-31 | G73: 105 | H73: 0
B74: =B61-DATE(YEAR(B61)-1,12,31.25) -> 1 | C74: 2013 | D74: 103.0027397 | E74: 2012-01-01 | F74: 2012-12-31 | G74: 104 | H74: 0
B75: =B61-DATE(YEAR(B61)-1,12,31.25) -> 1 | C75: 2012 | D75: 101.0054795 | E75: 2011-01-01 | F75: 2011-12-31 | G75: 103 | H75: 0
B76: =B61-DATE(YEAR(B61)-1,12,31.25) -> 1 | C76: 2011 | D76: 100.0027397 | E76: 2010-01-01 | F76: 2010-12-31 | G76: 101 | H76: 0
B77: =B61-DATE(YEAR(B61)-1,12,31.25) -> 1 | C77: 2010 | D77: 99.00273973 | E77: 2009-01-01 | F77: 2009-12-31 | G77: 100 | H77: 0
B78: =B61-DATE(YEAR(B61)-1,12,31.25) -> 1 | C78: 2009 | D78: 98.00273973 | E78: 2008-01-01 | F78: 2008-12-31 | G78: 99 | H78: 0
B79: =B61-DATE(YEAR(B61)-1,12,31.25) -> 1 | C79: 2008 | D79: 95.00821918 | E79: 2007-01-01 | F79: 2007-12-31 | G79: 98 | H79: 0
B80: =B61-DATE(YEAR(B61)-1,12,31.25) -> 1 | C80: 2007 | D80: 92.00821918 | E80: 2006-01-01 | F80: 2006-12-31 | G80: 95 | H80: 0
B81: =B61-DATE(YEAR(B61)-1,12,31.25) -> 1 | C81: 2006 | E81: 2005-01-01 | F81: 2005-12-31 | G81: 92 | H81: 0
H82: =SUM(H62:H81) -> 143.04 | I82: =IF(EingabeMaske!M$14=2,H82,0) -> 0 | J82: =IF(EingabeMaske!N$14=2,G67,0) -> 0
I83: =B61 -> 2020-01-01 | J83: 2020-01-01
A85: Marktsegment 3
B86: =EingabeMaske!D$16 -> 2020-01-01 | E86: Interpolation! | H86: Ergänzung
B87: =B$86-DATE(YEAR(B$86)-1,12,31.25) -> 1 | C87: 2025 | D87: 196.0465753 | E87: 2024-01-01 | F87: 2024-12-31 | G87: 213 | H87: =ROUND(IF(YEAR($B$6)+1=C87,D87,0),2) -> 0
B88: =B$86-DATE(YEAR(B$86)-1,12,31.25) -> 1 | C88: 2024 | D88: 213 | E88: 2023-01-01 | F88: 2023-12-31 | G88: 213 | H88: 0
B89: 1 | C89: 2023 | D89: 196.0465753 | E89: 2022-01-01 | F89: 2022-12-31 | G89: 213 | H89: 0
B90: =B86-DATE(YEAR(B86)-1,12,31.25) -> 1 | C90: 2022 | D90: 177.0520548 | E90: 2021-01-01 | F90: 2021-12-31 | G90: 196 | H90: =ROUND(IF(YEAR($B$6)+1=C90,D90,0),2) -> 0
B91: =B86-DATE(YEAR(B86)-1,12,31.25) -> 1 | C91: 2021 | D91: 156.0575342 | E91: 2020-01-01 | F91: 2020-12-31 | G91: 177 | H91: =ROUND(IF(YEAR($B$6)+1=C91,D91,0),2) -> 156.06
B92: =B86-DATE(YEAR(B86)-1,12,31.25) -> 1 | C92: 2020 | D92: 141.0410959 | E92: 2019-01-01 | F92: 2019-12-31 | G92: 156 | H92: 0
B93: =B86-DATE(YEAR(B86)-1,12,31.25) -> 1 | C93: 2019 | D93: 130.030137 | E93: 2018-01-01 | F93: 2018-12-31 | G93: 141 | H93: 0
B94: =B86-DATE(YEAR(B86)-1,12,31.25) -> 1 | C94: 2018 | D94: 121.0246575 | E94: 2017-01-01 | F94: 2017-12-31 | G94: 130 | H94: 0
B95: =B86-DATE(YEAR(B86)-1,12,31.25) -> 1 | C95: 2017 | D95: 114.0191781 | E95: 2016-01-01 | F95: 2016-12-31 | G95: 121 | H95: 0
B96: =B86-DATE(YEAR(B86)-1,12,31.25) -> 1 | C96: 2016 | D96: 111.0082192 | E96: 2015-01-01 | F96: 2015-12-31 | G96: 114 | H96: 0
B97: =B86-DATE(YEAR(B86)-1,12,31.25) -> 1 | C97: 2015 | D97: 109.0054795 | E97: 2014-01-01 | F97: 2014-12-31 | G97: 111 | H97: 0
B98: =B86-DATE(YEAR(B86)-1,12,31.25) -> 1 | C98: 2014 | D98: 107.0054795 | E98: 2013-01-01 | F98: 2013-12-31 | G98: 109 | H98: 0
B99: =B86-DATE(YEAR(B86)-1,12,31.25) -> 1 | C99: 2013 | D99: 104.0082192 | E99: 2012-01-01 | F99: 2012-12-31 | G99: 107 | H99: 0
B100: =B86-DATE(YEAR(B86)-1,12,31.25) -> 1 | C100: 2012 | D100: 102.0054795 | E100: 2011-01-01 | F100: 2011-12-31 | G100: 104 | H100: 0
B101: =B86-DATE(YEAR(B86)-1,12,31.25) -> 1 | C101: 2011 | D101: 100.0054795 | E101: 2010-01-01 | F101: 2010-12-31 | G101: 102 | H101: 0
B102: =B86-DATE(YEAR(B86)-1,12,31.25) -> 1 | C102: 2010 | D102: 99.00273973 | E102: 2009-01-01 | F102: 2009-12-31 | G102: 100 | H102: 0
B103: =B86-DATE(YEAR(B86)-1,12,31.25) -> 1 | C103: 2009 | D103: 98.00273973 | E103: 2008-01-01 | F103: 2008-12-31 | G103: 99 | H103: 0
B104: =B86-DATE(YEAR(B86)-1,12,31.25) -> 1 | C104: 2008 | D104: 95.00821918 | E104: 2007-01-01 | F104: 2007-12-31 | G104: 98 | H104: 0
B105: =B86-DATE(YEAR(B86)-1,12,31.25) -> 1 | C105: 2007 | D105: 92.00821918 | E105: 2006-01-01 | F105: 2006-12-31 | G105: 95 | H105: 0
B106: =B86-DATE(YEAR(B86)-1,12,31.25) -> 1 | C106: 2006 | E106: 2005-01-01 | F106: 2005-12-31 | G106: 92 | H106: 0
H107: =SUM(H87:H106) -> 156.06 | I107: =IF(EingabeMaske!M$14=3,H107,0) -> 0 | J107: =IF(EingabeMaske!N$14=3,G92,0) -> 0
I108: =B86 -> 2020-01-01 | J108: 2020-01-01
A110: Marktsegment 4
B111: =EingabeMaske!D$16 -> 2020-01-01 | E111: Interpolation! | H111: Ergänzung
B112: =B$111-DATE(YEAR(B$111)-1,12,31.25) -> 1 | C112: 2025 | D112: 190.0547945 | E112: 2024-01-01 | F112: 2024-12-31 | G112: 210 | H112: =ROUND(IF(YEAR($B$6)+1=C112,D112,0),2) -> 0
B113: =B$111-DATE(YEAR(B$111)-1,12,31.25) -> 1 | C113: 2024 | D113: 210 | E113: 2023-01-01 | F113: 2023-12-31 | G113: 210 | H113: 0
B114: 1 | C114: 2023 | D114: 190.0547945 | E114: 2022-01-01 | F114: 2022-12-31 | G114: 210 | H114: 0
B115: =B111-DATE(YEAR(B111)-1,12,31.25) -> 1 | C115: 2022 | D115: 170.0547945 | E115: 2021-01-01 | F115: 2021-12-31 | G115: 190 | H115: =ROUND(IF(YEAR($B$6)+1=C115,D115,0),2) -> 0
B116: =B111-DATE(YEAR(B111)-1,12,31.25) -> 1 | C116: 2021 | D116: 155.0410959 | E116: 2020-01-01 | F116: 2020-12-31 | G116: 170 | H116: =ROUND(IF(YEAR($B$6)+1=C116,D116,0),2) -> 155.04
B117: =B111-DATE(YEAR(B111)-1,12,31.25) -> 1 | C117: 2020 | D117: 152.0082192 | E117: 2019-01-01 | F117: 2019-12-31 | G117: 155 | H117: 0
B118: =B111-DATE(YEAR(B111)-1,12,31.25) -> 1 | C118: 2019 | D118: 142.0273973 | E118: 2018-01-01 | F118: 2018-12-31 | G118: 152 | H118: 0
B119: =B111-DATE(YEAR(B111)-1,12,31.25) -> 1 | C119: 2018 | D119: 130.0328767 | E119: 2017-01-01 | F119: 2017-12-31 | G119: 142 | H119: 0
B120: =B111-DATE(YEAR(B111)-1,12,31.25) -> 1 | C120: 2017 | D120: 121.0246575 | E120: 2016-01-01 | F120: 2016-12-31 | G120: 130 | H120: 0
B121: =B111-DATE(YEAR(B111)-1,12,31.25) -> 1 | C121: 2016 | D121: 114.0191781 | E121: 2015-01-01 | F121: 2015-12-31 | G121: 121 | H121: 0
B122: =B111-DATE(YEAR(B111)-1,12,31.25) -> 1 | C122: 2015 | D122: 110.0109589 | E122: 2014-01-01 | F122: 2014-12-31 | G122: 114 | H122: 0
B123: =B111-DATE(YEAR(B111)-1,12,31.25) -> 1 | C123: 2014 | D123: 106.0109589 | E123: 2013-01-01 | F123: 2013-12-31 | G123: 110 | H123: 0
B124: =B111-DATE(YEAR(B111)-1,12,31.25) -> 1 | C124: 2013 | D124: 105.0027397 | E124: 2012-01-01 | F124: 2012-12-31 | G124: 106 | H124: 0
B125: =B111-DATE(YEAR(B111)-1,12,31.25) -> 1 | C125: 2012 | D125: 102.0082192 | E125: 2011-01-01 | F125: 2011-12-31 | G125: 105 | H125: 0
B126: =B111-DATE(YEAR(B111)-1,12,31.25) -> 1 | C126: 2011 | D126: 100.0054795 | E126: 2010-01-01 | F126: 2010-12-31 | G126: 102 | H126: 0
B127: =B111-DATE(YEAR(B111)-1,12,31.25) -> 1 | C127: 2010 | D127: 99.00273973 | E127: 2009-01-01 | F127: 2009-12-31 | G127: 100 | H127: 0
B128: =B111-DATE(YEAR(B111)-1,12,31.25) -> 1 | C128: 2009 | D128: 98.00273973 | E128: 2008-01-01 | F128: 2008-12-31 | G128: 99 | H128: 0
B129: =B111-DATE(YEAR(B111)-1,12,31.25) -> 1 | C129: 2008 | D129: 95.00821918 | E129: 2007-01-01 | F129: 2007-12-31 | G129: 98 | H129: 0
B130: =B111-DATE(YEAR(B111)-1,12,31.25) -> 1 | C130: 2007 | D130: 92.00821918 | E130: 2006-01-01 | F130: 2006-12-31 | G130: 95 | H130: 0
B131: =B111-DATE(YEAR(B111)-1,12,31.25) -> 1 | C131: 2006 | E131: 2005-01-01 | F131: 2005-12-31 | G131: 92 | H131: 0
H132: =SUM(H112:H131) -> 155.04 | I132: =IF(EingabeMaske!M$14=4,H132,0) -> 0 | J132: =IF(EingabeMaske!N$14=4,G117,0) -> 0
I133: =B111 -> 2020-01-01 | J133: 2020-01-01
A135: Marktsegment 5
B136: =EingabeMaske!D$16 -> 2020-01-01 | E136: Interpolation! | H136: Ergänzung
B137: =B$136-DATE(YEAR(B$136)-1,12,31.25) -> 1 | C137: 2025 | D137: 225.0356164 | E137: 2024-01-01 | F137: 2024-12-31 | G137: 238 | H137: =ROUND(IF(YEAR($B$6)+1=C137,D137,0),2) -> 0
B138: =B$136-DATE(YEAR(B$136)-1,12,31.25) -> 1 | C138: 2024 | D138: 238 | E138: 2023-01-01 | F138: 2023-12-31 | G138: 238 | H138: 0
B139: 1 | C139: 2023 | D139: 225.0356164 | E139: 2022-01-01 | F139: 2022-12-31 | G139: 238 | H139: 0
B140: =B136-DATE(YEAR(B136)-1,12,31.25) -> 1 | C140: 2022 | D140: 208.0465753 | E140: 2021-01-01 | F140: 2021-12-31 | G140: 225 | H140: =ROUND(IF(YEAR($B$6)+1=C140,D140,0),2) -> 0
B141: =B136-DATE(YEAR(B136)-1,12,31.25) -> 1 | C141: 2021 | D141: 189.0520548 | E141: 2020-01-01 | F141: 2020-12-31 | G141: 208 | H141: =ROUND(IF(YEAR($B$6)+1=C141,D141,0),2) -> 189.05
B142: =B136-DATE(YEAR(B136)-1,12,31.25) -> 1 | C142: 2020 | D142: 170.0520548 | E142: 2019-01-01 | F142: 2019-12-31 | G142: 189 | H142: 0
B143: =B136-DATE(YEAR(B136)-1,12,31.25) -> 1 | C143: 2019 | D143: 156.0383562 | E143: 2018-01-01 | F143: 2018-12-31 | G143: 170 | H143: 0
B144: =B136-DATE(YEAR(B136)-1,12,31.25) -> 1 | C144: 2018 | D144: 143.0356164 | E144: 2017-01-01 | F144: 2017-12-31 | G144: 156 | H144: 0
B145: =B136-DATE(YEAR(B136)-1,12,31.25) -> 1 | C145: 2017 | D145: 133.0273973 | E145: 2016-01-01 | F145: 2016-12-31 | G145: 143 | H145: 0
B146: =B136-DATE(YEAR(B136)-1,12,31.25) -> 1 | C146: 2016 | D146: 124.0246575 | E146: 2015-01-01 | F146: 2015-12-31 | G146: 133 | H146: 0
B147: =B136-DATE(YEAR(B136)-1,12,31.25) -> 1 | C147: 2015 | D147: 119.0136986 | E147: 2014-01-01 | F147: 2014-12-31 | G147: 124 | H147: 0
B148: =B136-DATE(YEAR(B136)-1,12,31.25) -> 1 | C148: 2014 | D148: 114.0136986 | E148: 2013-01-01 | F148: 2013-12-31 | G148: 119 | H148: 0
B149: =B136-DATE(YEAR(B136)-1,12,31.25) -> 1 | C149: 2013 | D149: 109.0136986 | E149: 2012-01-01 | F149: 2012-12-31 | G149: 114 | H149: 0
B150: =B136-DATE(YEAR(B136)-1,12,31.25) -> 1 | C150: 2012 | D150: 104.0136986 | E150: 2011-01-01 | F150: 2011-12-31 | G150: 109 | H150: 0
B151: =B136-DATE(YEAR(B136)-1,12,31.25) -> 1 | C151: 2011 | D151: 100.0109589 | E151: 2010-01-01 | F151: 2010-12-31 | G151: 104 | H151: 0
B152: =B136-DATE(YEAR(B136)-1,12,31.25) -> 1 | C152: 2010 | D152: 99.00273973 | E152: 2009-01-01 | F152: 2009-12-31 | G152: 100 | H152: 0
B153: =B136-DATE(YEAR(B136)-1,12,31.25) -> 1 | C153: 2009 | D153: 98.00273973 | E153: 2008-01-01 | F153: 2008-12-31 | G153: 99 | H153: 0
B154: =B136-DATE(YEAR(B136)-1,12,31.25) -> 1 | C154: 2008 | D154: 95.00821918 | E154: 2007-01-01 | F154: 2007-12-31 | G154: 98 | H154: 0
B155: =B136-DATE(YEAR(B136)-1,12,31.25) -> 1 | C155: 2007 | D155: 92.00821918 | E155: 2006-01-01 | F155: 2006-12-31 | G155: 95 | H155: 0
B156: =B136-DATE(YEAR(B136)-1,12,31.25) -> 1 | C156: 2006 | E156: 2005-01-01 | F156: 2005-12-31 | G156: 92 | H156: 0
H157: =SUM(H136:H156) -> 189.05 | I157: =IF(EingabeMaske!M$14=5,H157,0) -> 0 | J157: =IF(EingabeMaske!N$14=5,G142,0) -> 0
I158: =B136 -> 2020-01-01 | J158: 2020-01-01
A160: Marktsegment 6
B161: =EingabeMaske!D$16 -> 2020-01-01 | E161: Interpolation! | H161: Ergänzung
B162: =B$161-DATE(YEAR(B$161)-1,12,31.25) -> 1 | C162: 2025 | D162: 222.0493151 | E162: 2024-01-01 | F162: 2024-12-31 | G162: 240 | H162: =ROUND(IF(YEAR($B$6)+1=C162,D162,0),2) -> 0
B163: =B$161-DATE(YEAR(B$161)-1,12,31.25) -> 1 | C163: 2024 | D163: 240 | E163: 2023-01-01 | F163: 2023-12-31 | G163: 240 | H163: 0
B164: 1 | C164: 2023 | D164: 222.0493151 | E164: 2022-01-01 | F164: 2022-12-31 | G164: 240 | H164: 0
B165: =B161-DATE(YEAR(B161)-1,12,31.25) -> 1 | C165: 2022 | D165: 205.0465753 | E165: 2021-01-01 | F165: 2021-12-31 | G165: 222 | H165: =ROUND(IF(YEAR($B$6)+1=C165,D165,0),2) -> 0
B166: =B161-DATE(YEAR(B161)-1,12,31.25) -> 1 | C166: 2021 | D166: 186.0520548 | E166: 2020-01-01 | F166: 2020-12-31 | G166: 205 | H166: =ROUND(IF(YEAR($B$6)+1=C166,D166,0),2) -> 186.05
B167: =B161-DATE(YEAR(B161)-1,12,31.25) -> 1 | C167: 2020 | D167: 174.0328767 | E167: 2019-01-01 | F167: 2019-12-31 | G167: 186 | H167: 0
B168: =B161-DATE(YEAR(B161)-1,12,31.25) -> 1 | C168: 2019 | D168: 160.0383562 | E168: 2018-01-01 | F168: 2018-12-31 | G168: 174 | H168: 0
B169: =B161-DATE(YEAR(B161)-1,12,31.25) -> 1 | C169: 2018 | D169: 148.0328767 | E169: 2017-01-01 | F169: 2017-12-31 | G169: 160 | H169: 0
B170: =B161-DATE(YEAR(B161)-1,12,31.25) -> 1 | C170: 2017 | D170: 135.0356164 | E170: 2016-01-01 | F170: 2016-12-31 | G170: 148 | H170: 0
B171: =B161-DATE(YEAR(B161)-1,12,31.25) -> 1 | C171: 2016 | D171: 127.0219178 | E171: 2015-01-01 | F171: 2015-12-31 | G171: 135 | H171: 0
B172: =B161-DATE(YEAR(B161)-1,12,31.25) -> 1 | C172: 2015 | D172: 120.0191781 | E172: 2014-01-01 | F172: 2014-12-31 | G172: 127 | H172: 0
B173: =B161-DATE(YEAR(B161)-1,12,31.25) -> 1 | C173: 2014 | D173: 113.0191781 | E173: 2013-01-01 | F173: 2013-12-31 | G173: 120 | H173: 0
B174: =B161-DATE(YEAR(B161)-1,12,31.25) -> 1 | C174: 2013 | D174: 106.0191781 | E174: 2012-01-01 | F174: 2012-12-31 | G174: 113 | H174: 0
B175: =B161-DATE(YEAR(B161)-1,12,31.25) -> 1 | C175: 2012 | D175: 101.0136986 | E175: 2011-01-01 | F175: 2011-12-31 | G175: 106 | H175: 0
B176: =B161-DATE(YEAR(B161)-1,12,31.25) -> 1 | C176: 2011 | D176: 100.0027397 | E176: 2010-01-01 | F176: 2010-12-31 | G176: 101 | H176: 0
B177: =B161-DATE(YEAR(B161)-1,12,31.25) -> 1 | C177: 2010 | D177: 99.00273973 | E177: 2009-01-01 | F177: 2009-12-31 | G177: 100 | H177: 0
B178: =B161-DATE(YEAR(B161)-1,12,31.25) -> 1 | C178: 2009 | D178: 98.00273973 | E178: 2008-01-01 | F178: 2008-12-31 | G178: 99 | H178: 0
B179: =B161-DATE(YEAR(B161)-1,12,31.25) -> 1 | C179: 2008 | D179: 95.00821918 | E179: 2007-01-01 | F179: 2007-12-31 | G179: 98 | H179: 0
B180: =B161-DATE(YEAR(B161)-1,12,31.25) -> 1 | C180: 2007 | D180: 92.00821918 | E180: 2006-01-01 | F180: 2006-12-31 | G180: 95 | H180: 0
B181: =B161-DATE(YEAR(B161)-1,12,31.25) -> 1 | C181: 2006 | E181: 2005-01-01 | F181: 2005-12-31 | G181: 92 | H181: 0
H182: =SUM(H162:H181) -> 186.05 | I182: =IF(EingabeMaske!M$14=6,H182,0) -> 0 | J182: =IF(EingabeMaske!N$14=6,G167,0) -> 0
I183: =B161 -> 2020-01-01 | J183: 2020-01-01
I185: =ROUND(I57+I82+I107+I132+I157+I182,0) -> 0 | J185: =ROUND(J57+J82+J107+J132+J157+J182,0) -> 0

Sheet GebStandard
B1: Gebäudestandards und Wägungsanteile für Ein- und Zweifamilienhäuser, Stufen 1-5 gemäß Anlage 2 der SW-RL
B4: Wägungsan- teile (∑100 %) | C4: Stufe 1 | E4: Stufe 2 | G4: Stufe 3 | I4: Stufe 4 | K4: Stufe 5
B5: Außenwände | C5: Holzfachwerk, Ziegelmauerwerk; Fugenglattstrich, Putz, Verkleidung mit Faserzementplatten, Bitumenschindeln oder einfachen Kunststoffplatten; kein oder deutlich nicht zeitgemäßer Wärmeschutz (vor ca. 1980) | E5: ein-/zweischaliges Mauerwerk, z. B. Gitterziegel oder Hohlblocksteine; verputzt und gestrichen oder Holzverkleidung; nicht zeitgemäßer Wärmeschutz (vor ca. 1995) | G5: ein-/zweischaliges Mauerwerk, z. B. aus Leichtziegeln, Kalksandsteinen, Gasbetonsteinen; Edelputz; Wärmedämmverbundsystem oder Wärmedämmputz (nach ca. 1995) | I5: Verblendmauerwerk, zweischalig, hinterlüftet, Vorhangfassade (z. B. Naturschiefer); Wärmedämmung (nach ca. 2005) | K5: aufwendig gestaltete Fassaden mit konstruktiver Gliederung (Säulenstell-ungen, Erker etc.), Sichtbeton-Fertig-teile, Natursteinfassade, Elemente aus Kupfer-/Eloxalblech, mehrgeschoss. Glasfassaden; hochwertigste Dämmung | N5: =IF(N6=TRUE,1,0) -> 0 | O5: =IF(O6=TRUE,1,0) -> 0 | P5: 1 | Q5: 0 | R5: 0
B6: 23% | C6: =ROUND($B6/$S6*N5,4) -> 0 | E6: =ROUND($B6/$S6*O5,4) -> 0 | G6: =ROUND($B6/$S6*P5,4) -> 0.23 | I6: =ROUND($B6/$S6*Q5,4) -> 0 | K6: =ROUND($B6/$S6*R5,4) -> 0 | N6: FALSE | O6: FALSE | P6: TRUE | Q6: FALSE | R6: FALSE | S6: =COUNTIF(N6:R6,TRUE) -> 1
B7: Dach | C7: Dachpappe, Faserzementplatten/ Wellplatten; keine bis geringe Dachdämmung | E7: einfache Betondachsteine oder Tondachziegel, Bitumenschindeln; nicht zeitgemäße Dachdämmung (vor ca. 1995) | G7: Faserzement-Schindeln, beschichtete Betondachsteine und Tondachziegel, Folienabdichtung; Dachdämmung (nach ca. 1995) | I7: glasierte Tondachziegel, Flachdach- ausbildung tlw. als Dachterrassen; Konstruktion in Brettschichtholz, schweres Massivflachdach; besondere Dachformen, z. B. Mansarden-, Walmdach; Aufsparrendämmung, überdurchschn. Dämmung (nach ca. 2005) | K7: hochwertige Eindeckung z. B. aus Schiefer oder Kupfer, Dachbegrünung, befahrbares Flachdach; stark überdurchschnittliche Dämmung | N7: =IF(N8=TRUE,1,0) -> 0 | O7: =IF(O8=TRUE,1,0) -> 0 | P7: 1 | Q7: 0 | R7: 0
B8: 15% | C8: =ROUND($B8/$S8*N7,4) -> 0 | E8: =ROUND($B8/$S8*O7,4) -> 0 | G8: =ROUND($B8/$S8*P7,4) -> 0.15 | I8: =ROUND($B8/$S8*Q7,4) -> 0 | K8: =ROUND($B8/$S8*R7,4) -> 0 | N8: FALSE | O8: FALSE | P8: TRUE | Q8: FALSE | R8: FALSE | S8: =COUNTIF(N8:R8,TRUE) -> 1
B9: Fenster und Außentüren | C9: Einfachverglasung; einfache Holztüren | E9: Zweifachverglasung (vor ca. 1995); Haustür mit nicht zeitgemäßem Wärmeschutz (vor ca. 1995) | G9: Zweifachverglasung (nach ca. 1995), Rollläden (manuell); Haustür mit zeitgemäßem Wärmeschutz (nach ca. 1995) | I9: Dreifachverglasung, Sonnenschutz- glas, aufwendigere Rahmen, Rollläden (elektr.); höherwertige Türanlagen z. B. mit Seitenteil, besonderer Einbruchschutz | K9: große feststehende Fensterflächen, Spezialverglasung (Schall- und Sonnenschutz); Außentüren in hochwertigen Materialien | N9: =IF(N10=TRUE,1,0) -> 0 | O9: =IF(O10=TRUE,1,0) -> 0 | P9: 1 | Q9: 0 | R9: 0
B10: 11% | C10: =ROUND($B10/$S10*N9,4) -> 0 | E10: =ROUND($B10/$S10*O9,4) -> 0 | G10: =ROUND($B10/$S10*P9,4) -> 0.11 | I10: =ROUND($B10/$S10*Q9,4) -> 0 | K10: =ROUND($B10/$S10*R9,4) -> 0 | N10: FALSE | O10: FALSE | P10: TRUE | Q10: FALSE | R10: FALSE | S10: =COUNTIF(N10:R10,TRUE) -> 1
B11: Innenwände und -türen | C11: Fachwerkwände, einfache Putze/Lehmputze, einfache Kalkanstriche; Füllungstüren, gestrichen, mit einfachen Beschlägen ohne Dichtungen | E11: massive tragende Innenwände, nicht tragende Wände in Leichtbauweise (z. B. Holzständerwände mit Gipskarton), Gipsdielen; leichte Türen, Stahlzargen | G11: nicht tragende Innenwände in massiver Ausführung bzw. mit Dämmmaterial gefüllte Ständerkonstruktionen; schwere Türen | I11: Sichtmauerwerk; Massivholztüren, Schiebetürelemente, Glastüren, strukturierte Türblätter | K11: gestaltete Wandabläufe (z. B. Pfeilervorlagen, abgesetzte oder geschwungene Wandpartien); Brandschutzverkleidung; raumhohe aufwendige Türelemente | N11: =IF(N12=TRUE,1,0) -> 0 | O11: =IF(O12=TRUE,1,0) -> 0 | P11: 1 | Q11: 0 | R11: 0
B12: 11% | C12: =ROUND($B12/$S12*N11,4) -> 0 | E12: =ROUND($B12/$S12*O11,4) -> 0 | G12: =ROUND($B12/$S12*P11,4) -> 0.11 | I12: =ROUND($B12/$S12*Q11,4) -> 0 | K12: =ROUND($B12/$S12*R11,4) -> 0 | N12: FALSE | O12: FALSE | P12: TRUE | Q12: FALSE | R12: FALSE | S12: =COUNTIF(N12:R12,TRUE) -> 1
B13: Deckenkon- struktion | C13: Holzbalkendecken ohne Füllung, Spalierputz; Weichholztreppen in einfacher Art und Ausführung; kein Trittschallschutz | E13: Holzbalkendecken mit Füllung, Kappendecken; Stahl- oder Hartholztreppen in einfacher Art und Ausführung | G13: Beton- und Holzbalkendecken mit Tritt- und Luftschallschutz (z. B. schwimmender Estrich); geradläufige Treppen aus Stahlbeton oder Stahl, Harfentreppe, Trittschallschutz | I13: Decken mit größerer Spannweite, Deckenverkleidung (Holzpaneele/Kasseten); gewendelte Treppen aus Stahlbeton oder Stahl, Hartholztreppenanlage in besserer Art und Ausführung | K13: Decken mit großen Spannweiten, Deckenvertäfelungen (Edelholz, Metall); breite Stahlbeton-, Metall- oder Holztreppenanlage mit hochwertigem Geländer | N13: =IF(N14=TRUE,1,0) -> 0 | O13: =IF(O14=TRUE,1,0) -> 0 | P13: 1 | Q13: 0 | R13: 0
B14: 11% | C14: =ROUND($B14/$S14*N13,4) -> 0 | E14: =ROUND($B14/$S14*O13,4) -> 0 | G14: =ROUND($B14/$S14*P13,4) -> 0.11 | I14: =ROUND($B14/$S14*Q13,4) -> 0 | K14: =ROUND($B14/$S14*R13,4) -> 0 | N14: FALSE | O14: FALSE | P14: TRUE | Q14: FALSE | R14: FALSE | S14: =COUNTIF(N14:R14,TRUE) -> 1
B15: Fußböden | C15: ohne Belag | E15: Linoleum-, Teppich-, Laminat- und PVC-Böden einfacher Art und Ausführung | G15: Linoleum-, Teppich-, Laminat- und PVC-Böden besserer Art und Ausführung, Fliesen, Kunststeinplatten | I15: Natursteinplatten, Fertigparkett, hochwertige Fliesen, Terrazzobelag, hochwertige Massivholzböden auf aufgedämmter Unterkonstruktion | K15: hochwertiges Parkett, hochwertige Natursteinplatten, hochwertige Edelholzböden auf gedämmter Unterkonstruktion | N15: =IF(N16=TRUE,1,0) -> 0 | O15: =IF(O16=TRUE,1,0) -> 0 | P15: 1 | Q15: 0 | R15: 0
B16: 5% | C16: =ROUND($B16/$S16*N15,4) -> 0 | E16: =ROUND($B16/$S16*O15,4) -> 0 | G16: =ROUND($B16/$S16*P15,4) -> 0.05 | I16: =ROUND($B16/$S16*Q15,4) -> 0 | K16: =ROUND($B16/$S16*R15,4) -> 0 | N16: FALSE | O16: FALSE | P16: TRUE | Q16: FALSE | R16: FALSE | S16: =COUNTIF(N16:R16,TRUE) -> 1
B17: Sanitärein- richtungen | C17: einfaches Bad mit Stand-WC; Installation auf Putz, Ölfarbenanstrich, einfache PVC-Bodenbeläge | E17: 1 Bad mit WC, Dusche oder Badewanne; einfache Wand- und Bodenfliesen, teilweise gefliest | G17: 1 Bad mit WC je Wohneinheit; Dusche und Badewanne; Wand- und Bodenfliesen, raumhoch gefliest | I17: 1 – 2 Bäder je Wohneinheit mit tlw. zwei Waschbecken, tlw. Bidet/ Urinal, Gäste-WC, bodengleiche Dusche; Wand- und Bodenfliesen jeweils in gehobener Qualität | K17: 2 und mehr Bäder je Wohneinheit; hochwertige Wand- und Bodenplatten (oberflächenstrukturiert, Einzel- und Flächendekors) | N17: =IF(N18=TRUE,1,0) -> 0 | O17: =IF(O18=TRUE,1,0) -> 0 | P17: 1 | Q17: 0 | R17: 0
B18: 9% | C18: =ROUND($B18/$S18*N17,4) -> 0 | E18: =ROUND($B18/$S18*O17,4) -> 0 | G18: =ROUND($B18/$S18*P17,4) -> 0.09 | I18: =ROUND($B18/$S18*Q17,4) -> 0 | K18: =ROUND($B18/$S18*R17,4) -> 0 | N18: FALSE | O18: FALSE | P18: TRUE | Q18: FALSE | R18: FALSE | S18: =COUNTIF(N18:R18,TRUE) -> 1
B19: Heizung | C19: Einzelöfen, Schwerkraftheizung | E19: Fern- oder Zentralheizung, einfache Warmluftheizung, einzelne Gasaußen-wandthermen, Nachtstromspeicher-, Fußbodenheizung (vor ca. 1995) | G19: elektronisch gesteuerte Fern- oder Zentralheizung, Niedertemperatur- oder Brennwertkessel | I19: Fußbodenheizung, Solarkollektoren für Warmwassererzeugung | K19: Solarkollektoren für Warmwassererzeugung und Heizung, Blockheizkraftwerk, Wärmepumpe, Hybrid-Systeme | N19: =IF(N20=TRUE,1,0) -> 0 | O19: =IF(O20=TRUE,1,0) -> 0 | P19: 1 | Q19: 0 | R19: 0
B20: 9% | C20: =ROUND($B20/$S20*N19,4) -> 0 | E20: =ROUND($B20/$S20*O19,4) -> 0 | G20: =ROUND($B20/$S20*P19,4) -> 0.09 | I20: =ROUND($B20/$S20*Q19,4) -> 0 | K20: =ROUND($B20/$S20*R19,4) -> 0 | N20: FALSE | O20: FALSE | P20: TRUE | Q20: FALSE | R20: FALSE | S20: =COUNTIF(N20:R20,TRUE) -> 1
B21: Sonstige technische Ausstattung | C21: sehr wenige Steckdosen, Schalter und Sicherungen, kein Fehlerstromschutzschalter (FI-Schalter), Leitungen teilweise auf Putz | E21: wenige Steckdosen, Schalter und Sicherungen | G21: zeitgemäße Anzahl an Steckdosen und Lichtauslässen; Zählerschrank (ab ca. 1985) mit Unterverteilung und Kippsicherungen | I21: zahlreiche Steckdosen und Lichtaus- lässe, hochwertige Abdeckungen, de-zentrale Lüftung mit Wärme- tauscher, mehrere LAN- und Fernseh-anschlüsse, Personenaufzugsanlagen | K21: Video- und zentrale Alarmanlage, zentrale Lüftung mit Wärmetauscher, Klimaanlage, Bussystem; aufwendige Personenaufzugsanlagen | N21: =IF(N22=TRUE,1,0) -> 0 | O21: =IF(O22=TRUE,1,0) -> 0 | P21: 1 | Q21: 0 | R21: 0
B22: 6% | C22: =ROUND($B22/$S22*N21,4) -> 0 | E22: =ROUND($B22/$S22*O21,4) -> 0 | G22: =ROUND($B22/$S22*P21,4) -> 0.06 | I22: =ROUND($B22/$S22*Q21,4) -> 0 | K22: =ROUND($B22/$S22*R21,4) -> 0 | N22: FALSE | O22: FALSE | P22: TRUE | Q22: FALSE | R22: FALSE | S22: =COUNTIF(N22:R22,TRUE) -> 1
B23: Summe | C23: =SUM(C6:C22) -> 0 | E23: =SUM(E6:E22) -> 0 | G23: =SUM(G6:G22) -> 1 | I23: =SUM(I6:I22) -> 0 | K23: =SUM(K6:K22) -> 0
B24: GND [Jahre] | C24: 60 | E24: 65 | G24: 70 | I24: 75 | K24: 80
B25: Gesamtnutzungsdauer (Jahre, gewogen): | E25: =ROUND((C$24*C$23+E$24*E$23+G$24*G$23+I$24*I$23+K$24*K$23),1) -> 70 | G25: Standardstufe (gewogen): | I25: =(1*C23+2*E23+3*G23+4*I23+5*K23) -> 3

Sheet RND
A1: Modell zur Ableitung der wirtschaftlichen Restnutzungsdauer für Wohngebäude unter Berücksichtigung von Modernisierungen (SW-RL Anl. 4)
A2: für Ein- und Zweifamilienhäuser
A3: Objekt | F3: Satz-Nr. | J3: Kommentar
A4: Modernisierungselemente | F4: max. Punkte | I4: tats. Punkte
A5: Dacherneuerung inklusive Verbesserung der Wärmedämmung | F5: 4 | K5: 60 | L5: 1
A6: Modernisierung der Fenster und Außentüren | F6: =IF(I6>3,"TILT max. 2 ",2) -> 2 | K6: 65 | L6: 2
A7: Modernisierung der Leitungssysteme (Strom, Gas, Wasser, Abwasser) | F7: =IF(I7>3,"TILT max. 2 ",2) -> 2 | K7: 70 | L7: 3
A8: Modernisierung der Heizungsanlage | F8: =IF(I8>3,"TILT max. 2 ",2) -> 2 | K8: 75 | L8: 4
A9: Wärmedämmung der Außenwände | F9: 4 | K9: 80
A10: Modernisierung von Bädern | F10: =IF(I10>3,"TILT max. 2 ",2) -> 2 | K10: 90
A11: Modernisierung des Innenausbaus, z.B. Decken, Fußböden, Treppen | F11: 2 | L11: =IF(AND(I3<>"",I13=0),"Einblenden","Ausblenden") -> Ausblenden
A12: Wesentliche Verbesserung der Grundrissgestaltung | F12: 2
A13: Summe | F13: =SUM(F5:F12) -> 20 | I13: =SUM(I5:I12) -> 0 | L13: =IF(I13>0,#REF!=0) -> FALSE
A15: Liegen die Maßnahmen weiter zurück, ist zu prüfen, ob nicht ein geringerer als der maximale Tabellenwert anzusetzen ist. Sofern nicht modernisierte Bauelemente noch zeitgemäßen Ansprüchen genügen, sind entsprechende Punkte zu vergeben.
A19: Modernisierungsgrad | F19: Punkte | L19: Modernisierungsgrad | M19: a | N19: b | O19: c | P19: ab einem relativen Alter [%] von *) | R19: Formel anwendbar
A20: nicht modernisiert | F20: 0 | G20: - | H20: 1 | I20: =IF(AND(I13<>"",F20<=I13,H20>=I13,I13<1),I13,IF((F20<=I13)*OR(H20>=I13),I13,0)) -> 0 | L20: ≤ 1 Punkt | M20: 0.0125 | N20: 2.625 | O20: 152.5 | P20: 60 | Q20: 24 | R20: =IF(AND(I13<2,L29>(P20-1)),1,0) -> 1
A21: kleine Modernisierung im Rahmen der Instandhaltung | F21: 2 | G21: - | H21: 5 | I21: =IF(AND(I13<>"",F21<=I13,H21>=I13,I13<1),I13,IF(AND(J24<>"",F21<=J24,H21>=J24),J24,IF((F21<=I13)*OR(H21>=I13),I13,0))) -> 0 | L21: 4 Punkte | M21: 0.0073 | N21: 1.577 | O21: 111.33 | P21: 40 | Q21: 0 | R21: =IF(AND(I21<>0,L29>(P21-1)),1,0) -> 0
A22: mittlerer Modernisierungsgrad | F22: 6 | G22: - | H22: 10 | I22: =IF(AND(I13<>"",F22<=I13,H22>=I13,I13<1),I13,IF((F22<=I13)*OR(H22>=I13),I13,0)) -> 0 | L22: 8 Punkte | M22: 0.005 | N22: 1.1 | O22: 100 | P22: 20 | Q22: 0 | R22: =IF(AND(I22<>0,L29>(P22-1)),1,0) -> 0
A23: überwiegend modernisiert | F23: 11 | G23: - | H23: 17 | I23: =IF(AND(I13<>"",F23<=I13,H23>=I13<1),,IF((F23<=I13)*OR(H23>=I13),I13,0)) -> 0 | L23: 13 Punkte | M23: 0.0033 | N23: 0.735 | O23: 95.28 | P23: 15 | Q23: 0 | R23: =IF(AND(I23<>0,L29>(P23-1)),1,0) -> 0
A24: umfassend modernisiert | F24: 18 | G24: - | H24: 20 | I24: =IF(AND(I13<>"",F24<=I13,H24>=I13,I13<1),I13,IF((F24<=I13)*OR(H24>=I13),I13,0)) -> 0 | L24: ≥ 18 Punkte | M24: 0.002 | N24: 0.44 | O24: 94.2 | P24: 10 | Q24: 0 | R24: =IF(AND(I24<>0,L29>(P24-1)),1,0) -> 0
P25: Summe | Q25: =SUM(Q20:Q24) -> 24 | R25: =SUM(R20:R24) -> 1
A26: Ermittlung der Restnutzungsdauer und des rechnerischen Baujahres | L26: Maximales tatsächliches Gebäudealter unter Berücksichtigung der gewählten Gesamtnutzungsdauer:
A27: Vorgaben | B27: Stichtag | E27: nur das Jahr ! | F27: =YEAR(EingabeMaske!D16) -> 2020 | L27: 36
B28: Baujahr | F28: =EingabeMaske!D23 -> 2005 | L28: Berechnung des relativen Gebäudealters (Alter/GNDx100):
B29: tatsächliches Alter | F29: =F27-F28 -> 15 | I29: Jahre | L29: 60 | M29: %
B30: Bestimmung der Restnutzungsdauer bei ausstattungsabhängiger Gesamtnutzungsdauer nach SW-RL Anlage 3
B31: Gesamtnutzungsdauer (60 - 80 Jahre) | F31: =EingabeMaske!D24 -> 70 | I31: Jahre
B32: wirtschaftliche gerechnete Restnutzungsdauer nach SW-RL | F32: =ROUND('modifizierte RND'!D10,0) -> 55 | I32: Jahre
B33: lineare Alterswertminderung | F33: =ROUND((F31-F32)/F31*100,0) -> 21 | I33: %
B34: fiktives Baujahr | F34: =F27-(F31-F32) -> 2005
B35: Die Ermittlung des fiktiven Baujahrs wurde durchgeführt | E35: FALSE | F35: =IF(E35=TRUE,"ja","nein") -> nein

Sheet modifizierte RND (hidden)
A1: Ermittlung der modifizierten Restnutzungsdauer
A2: SW-Modell AGVGA NRW - Anlage 4
A4: tatsächliches Gebäudealter (Alter): | D4: =RND!F29 -> 15 | E4: Jahre | F4: =IF(D4<0,"Negative Jahre ???","") -> 
A6: Modernisierungsgrad: | D6: =IF(RND!I13<>0,RND!I13,RND!I13) -> 0 | E6: Punkte | F6: =IF(D6="","",IF(D6<=K16,"(Modernisierungsstufe 1)",IF(D6<6,"(Modernisierungsstufe 2)",IF(AND(D6>5,D6<11),"(Modernisierungsstufe 3)",IF(AND(D6>10,D6<18),"(Modernisierungsstufe 4)",IF(D6>=K33,"(Modernisierungsstufe 5)","")))))) -> (Modernisierungsstufe 1)
A8: Gesamtnutzungsdauer (GND): | D8: =RND!F31 -> 70 | E8: Jahre | K8: mögliche Gesamtnutzungsdauer: | O8: relatives Gebäudealter
K9: 60 | O9: =D4/D8 -> 0.2142857143 | Q9: Alter für Formel max. Alter der GND | R9: Prüfung, ob Formel anwendbar ( "ab einem relativen Alter") | S9: Formel nicht anwendbar, daher Jahre durch Abzug RND=GND-Alter aber max. 80 Jahre! | T9: Formel anwendbar mod. RND in Jahren | U9: modifizierte RND | V9: interpoliert ? | W9: GND - Alter ?
A10: modifizierte Restnutzungsdauer: | D10: =IF(D6=0,D8-D4,IF(AND(D4="",D6="",D8=""),"",IF(D4<>"",IF(D6="","Punkte ?",IF(D8="","GND ?",U34)),"s.o."))) -> 55 | E10: Jahre | K10: 65
A11: Bei der angezeigten modifizierten Restnutzungsdauer handelt es sich um eine interpolierte, mathematisch berechnete Zahl ! | K11: 70
K12: 75
K13: 80
A14: Tabelle zur Ermittlung der modifizierten Restnutzungsdauer | K14: 90 | Q14: =IF(D4>D8,D8,D4) -> 15
K15: Modernisierungsgrad: | M15: =IF(D6=K16,1,IF(D6=K33,18,D6)) -> 0 | N15: a | O15: b | P15: c
A16: a x . | B16: 100 | C16: x Alter ² - b x Alter + c x | F16: GND | K16: 1 | M16: =IF($D$6<=B20,D6,"") -> 0 | N16: =IF($D$6<=B20,C20,"") -> 0.0125 | O16: =IF($D$6<=B20,D20,"") -> 2.625 | P16: =IF($D$6<=B20,E20,"") -> 152.5 | R16: =IF(M16="","",IF(AND($D$6<=B20,$O$9>=F20/100),"JA","NEIN")) -> NEIN | S16: =IF(R16="NEIN",IF($D$4>80,80,$D$8-$Q$14),"") -> 55 | T16: =IF(R16="JA",$N$34*100/$D$8*$Q$14*$Q$14-($O$34*$Q$14)+($P$34*$D$8/100),"") ->  | U16: =SUM(S16:T16) -> 55 | V16: =IF(R16="JA",IF(AND(OR($D$4=0,$D$4=5,$D$4=10,$D$4=15,$D$4=20,$D$4=25,$D$4=30,$D$4=35,$D$4=40,$D$4=45,$D$4=50,$D$4=55,$D$4=60,$D$4=60,$D$4=65,$D$4=70,$D$4=75,$D$4>=80),OR($D$6<2,$D$6=4,$D$6=8,$D$6=13,$D$6>17)),0,1),0) -> 0 | W16: =IF(R16="NEIN",1,0) -> 1
B17: GND | F17: 100 | K17: 2 | M17: =IF($D$6=B21,B21,"") ->  | N17: =IF($D$6=B21,C21,"") ->  | O17: =IF($D$6=B21,D21,"") ->  | P17: =IF($D$6=B21,E21,"") ->  | R17: =IF(M17="","",IF(AND($D$6=B21,$O$9>=F21/100),"JA","NEIN")) ->  | S17: =IF(R17="NEIN",$D$8-$D$4,"") ->  | U17: 0 | V17: 0 | W17: 0
A18: Die Restnutzungsdauer kann zwischen den Stufen durch Interpolation ermittelt werden. | K18: 3 | U18: 0 | V18: 0 | W18: 0
B19: Moder- nisierungs- grad | C19: a | D19: b | E19: c | F19: ab einem relativen Alter (%) | K19: 4 | U19: 0 | V19: 0 | W19: 0
B20: 1 | C20: 0.0125 | D20: 2.625 | E20: 152.5 | F20: 60 | K20: 5 | U20: 0 | V20: 0 | W20: 0
B21: 2 | C21: =ROUND(C20-(C20-C23)/3*1,4) -> 0.0108 | D21: =ROUND(D20-(D20-D23)/3*1,3) -> 2.276 | E21: =ROUND(E20-(E20-E23)/3*1,2) -> 138.78 | F21: =ROUND(F20-(F20-F23)/3*1,0) -> 53 | H21: Zeile 22, Spalte F: | K21: 6 | U21: 0 | V21: 0 | W21: 0
B22: 3 | C22: =ROUND(C20-(C20-C23)/3*2,4) -> 0.009 | D22: =ROUND(D20-(D20-D23)/3*2,3) -> 1.926 | E22: =ROUND(E20-(E20-E23)/3*2,2) -> 125.05 | F22: =ROUND(F20-(F20-F23)/3*2,0)+1 -> 48 | H22: ein Jahr addiert, | K22: 7 | U22: 0 | V22: 0 | W22: 0
B23: 4 | C23: 0.0073 | D23: 1.577 | E23: 111.33 | F23: 40 | H23: da sonst die modifizierte | K23: 8 | U23: 0 | V23: 0 | W23: 0
B24: 5 | C24: =ROUND(C23-(C23-C27)/4*1,4) -> 0.0067 | D24: =ROUND(D23-(D23-D27)/4*1,3) -> 1.458 | E24: =ROUND(E23-(E23-E27)/4*1,2) -> 108.5 | F24: =ROUND(F23-(F23-F27)/4*1,0) -> 35 | H24: RND bei Modernisierungspunkt 3 | K24: 9 | U24: 0 | V24: 0 | W24: 0
B25: 6 | C25: =ROUND(C23-(C23-C27)/4*2,4) -> 0.0062 | D25: =ROUND(D23-(D23-D27)/4*2,3) -> 1.339 | E25: =ROUND(E23-(E23-E27)/4*2,24) -> 105.665 | F25: =ROUND(F23-(F23-F27)/4*2,0) -> 30 | H25: größer als bei Mod.Pkt 4 sein könnte | K25: 10 | U25: 0 | V25: 0 | W25: 0
B26: 7 | C26: =ROUND(C23-(C23-C27)/4*3,4) -> 0.0056 | D26: =ROUND(D23-(D23-D27)/4*3,3) -> 1.219 | E26: =ROUND(E23-(E23-E27)/4*3,2) -> 102.83 | F26: =ROUND(F23-(F23-F27)/4*3,0) -> 25 | K26: 11 | U26: 0 | V26: 0 | W26: 0
B27: 8 | C27: 0.005 | D27: 1.1 | E27: 100 | F27: 20 | K27: 12 | U27: 0 | V27: 0 | W27: 0
B28: 9 | C28: =ROUND(C27-(C27-C32)/5*1,4) -> 0.0047 | D28: =ROUND(D27-(D27-D32)/5*1,3) -> 1.027 | E28: =ROUND(E27-(E27-E32)/5*1,2) -> 99.06 | F28: =ROUND(F27-(F27-F32)/5*1,0) -> 19 | K28: 13 | U28: 0 | V28: 0 | W28: 0
B29: 10 | C29: =ROUND(C27-(C27-C32)/5*2,4) -> 0.0043 | D29: =ROUND(D27-(D27-D32)/5*2,3) -> 0.954 | E29: =ROUND(E27-(E27-E32)/5*2,2) -> 98.11 | F29: =ROUND(F27-(F27-F32)/5*2,0) -> 18 | K29: 14 | U29: 0 | V29: 0 | W29: 0
B30: 11 | C30: =ROUND(C27-(C27-C32)/5*3,4) -> 0.004 | D30: =ROUND(D27-(D27-D32)/5*3,3) -> 0.881 | E30: =ROUND(E27-(E27-E32)/5*3,2) -> 97.17 | F30: =ROUND(F27-(F27-F32)/5*3,0) -> 17 | K30: 15 | U30: 0 | V30: 0 | W30: 0
B31: 12 | C31: =ROUND(C27-(C27-C32)/5*4,4) -> 0.0036 | D31: =ROUND(D27-(D27-D32)/5*4,3) -> 0.808 | E31: =ROUND(E27-(E27-E32)/5*4,2) -> 96.22 | F31: =ROUND(F27-(F27-F32)/5*4,0) -> 16 | K31: 16 | U31: 0 | V31: 0 | W31: 0
B32: 13 | C32: 0.0033 | D32: 0.735 | E32: 95.28 | F32: 15 | K32: 17 | U32: 0 | V32: 0 | W32: 0
B33: 14 | C33: =ROUND(C32-(C32-C37)/5*1,4) -> 0.003 | D33: =ROUND(D32-(D32-D37)/5*1,3) -> 0.676 | E33: =ROUND(E32-(E32-E37)/5*1,2) -> 95.06 | F33: =ROUND(F32-(F32-F37)/5*1,0) -> 14 | K33: 18 | M33: =IF($D$6>=B37,D6,"") ->  | N33: =IF($D$6>=B37,C37,"") ->  | O33: =IF($D$6>=B37,D37,"") ->  | P33: =IF($D$6>=B37,E37,"") ->  | R33: =IF(M33="","",IF(AND($D$6>=B37,$O$9>=F37/100),"JA","NEIN")) ->  | U33: 0 | V33: 0 | W33: 0
B34: 15 | C34: =ROUND(C32-(C32-C37)/5*2,4) -> 0.0028 | D34: =ROUND(D32-(D32-D37)/5*2,3) -> 0.617 | E34: =ROUND(E32-(E32-E37)/5*2,2) -> 94.85 | F34: =ROUND(F32-(F32-F37)/5*2,0) -> 13 | N34: =SUM(N16:N33) -> 0.0125 | O34: =SUM(O16:O33) -> 2.625 | P34: =SUM(P16:P33) -> 152.5 | U34: =SUM(U16:U33) -> 55 | V34: =SUM(V16:V33) -> 0 | W34: =SUM(W16:W33) -> 1
B35: 16 | C35: =ROUND(C32-(C32-C37)/5*3,4) -> 0.0025 | D35: =ROUND(D32-(D32-D37)/5*3,3) -> 0.558 | E35: =ROUND(E32-(E32-E37)/5*3,2) -> 94.63 | F35: =ROUND(F32-(F32-F37)/5*3,0) -> 12 | N35: a | O35: b | P35: c | V35: =IF(V34=0,""," (interpoliert)") ->  | W35: =IF(W34=0,""," (GND - tats. Alter)") -> (GND - tats. Alter)
B36: 17 | C36: =ROUND(C32-(C32-C37)/5*4,4) -> 0.0023 | D36: =ROUND(D32-(D32-D37)/5*4,3) -> 0.499 | E36: =ROUND(E32-(E32-E37)/5*4,2) -> 94.42 | F36: =ROUND(F32-(F32-F37)/5*4,0) -> 11 | U36: Text in RND: | V36: =IF(V35<>"",V35,W35) -> (GND - tats. Alter)
B37: 18 | C37: 0.002 | D37: 0.44 | E37: 94.2 | F37: 10

Sheet Werte (hidden)
A1: Garage
A2: Doppelgarage
A3: Carport
A4: Carport und Garage
A5: Sonstiges (freie Eingabe)
A8: freistehend
A9: Doppelhaushäfte / Reihenendhaus
A10: Reihenmittelhaus

Sheet Werte 2 (hidden)
A1: Bewertungsgrundstück | B1: WO gesamt | C1: WO | D1: BRW | E1: UK WO | F1: UK RW | K1: Restfläche
A2: Fall 1: Eine Aufteilung in selbstständig verwertbare und baulich nutzbare Teilflächen ist möglich. Die Teilfläche des bebauten Grundstücksteils (überbaute Fläche zzgl. Umgriffsfläche) beträgt: | B2: =EingabeMaske!D19 -> 500 | C2: =EingabeMaske!D20 -> 0 | D2: =EingabeMaske!D27 -> 500 | E2: =IF(C2*D2>0,1.7*C2^(-0.0855),"") ->  | F2: =IF(C2*D2>0,1.7*D2^(-0.0855),"") ->  | G2: =IF(C2*D2>0,E2/F2,1) -> 1 | H2: =B2-C2 -> 500 | I2: selbstständig verwertbare Teilfläche | J2: Anpassung an die Grundstücksgröße | K2: =IF(C2=0,0,B2-C2) -> 0 | L2: =IF(C2*D2>0,1.7*K2^(-0.0855),"") ->  | M2: =IF(C2*D2>0,L2/F2,1) -> 1 | N2: =IF(EingabeMaske!D20=0,"Angabe der Fläche erforderlich","") -> Angabe der Fläche erforderlich
A3: Fall 2: Die mittlere Grundstückstiefe liegt über 40 m. Eine Aufteilung in selbstständig verwertbare und baulich nutzbare Teilflächen ist nicht möglich. Die Fläche bis zu 40 m Tiefe (Vorderland) beträgt: | B3: =EingabeMaske!D19 -> 500 | C3: =EingabeMaske!D20 -> 0 | D3: =EingabeMaske!D27 -> 500 | E3: =IF(C3*D3>0,1.7*C3^(-0.0855),"") ->  | F3: =IF(C3*D3>0,1.7*D3^(-0.0855),"") ->  | G3: =IF(C3*D3>0,E3/F3,1) -> 1 | H3: =B3-C3 -> 500 | I3: Hinterlandfläche | J3: Wertfaktor für Hinterland | K3: =IF(C3=0,0,B3-C3) -> 0 | L3: =IF(C3*D3>0,1.7*K3^(-0.0855),"") ->  | M3: 0.25 | N3: =IF(EingabeMaske!D20=0,"Angabe der Fläche erforderlich","") -> Angabe der Fläche erforderlich
A4: Fall 3: Eine Aufteilung in selbstständig verwertbare und baulich nutzbare Teilflächen ist nicht möglich. Die mittlere Tiefe des Grundstücks liegt unter 40 m. Eintrag auf 0 setzen. | B4: =EingabeMaske!D19 -> 500 | C4: 0 | D4: =EingabeMaske!D27 -> 500 | E4: =IF(D4>0,1.7*B4^(-0.0855),"") -> 0.9992795183 | F4: =IF(D4>0,1.7*D4^(-0.0855),"") -> 0.9992795183 | G4: =IF(D4>0,E4/F4,1) -> 1 | H4: =0 -> 0 | K4: 0 | N4: =IF(EingabeMaske!D20>0,"Eintag auf 0 m² setzen","") -> 
